{"text_format":"1","workbook":"xlsx","n_sheets":1,"sheets":["Data"],"not_rendered":{"charts":0,"images":1,"macros":0,"external_links":0,"defined_names":0,"comments":1,"pivot_tables":0},"unopened":[],"bounds":{"document_bytes":16777216,"sheet_cells":100000,"rows_first":2000,"rows_last":500,"rows_between":2000,"halvings":0,"cell_chars":16384,"cell_head_chars":4096},"cells_cut":0,"cells_raw":0,"read":"whole","date_system":"1900"}

{"sheet":"Data","index":0,"n_rows":402,"n_cols":9,"rows_kept":402,"cut":false,"hidden":false,"merged":[]}
[null,null,null,null,null,"Bin_1 <> Bin_2, Bin_1 <> Bin_3, Bin_2 <> Bin_3"]
[]
[null,"Table1",null,null,null,"Table2"]
[null,"Bin_1","Bin_2","Bin_3",null,"Bin_1","Bin_2","Bin_3","Test"]
[null,"Taylor","Wilson","Johnson",null,"","Anderson","Brown",{"$f":"--NOT(OR(Table2[[#This Row],[Bin_1]]=Table2[[#This Row],[Bin_2]],Table2[[#This Row],[Bin_1]]=Table2[[#This Row],[Bin_3]],Table2[[#This Row],[Bin_2]]=Table2[[#This Row],[Bin_3]]))","v":1}]
[null,"Wilson","Miller","Thomas",null,"","Anderson","Smith",{"$f":"--NOT(OR(Table2[[#This Row],[Bin_1]]=Table2[[#This Row],[Bin_2]],Table2[[#This Row],[Bin_1]]=Table2[[#This Row],[Bin_3]],Table2[[#This Row],[Bin_2]]=Table2[[#This Row],[Bin_3]]))","v":1}]
[null,"","Brown","Smith",null,"","Anderson","Wilson",{"$f":"--NOT(OR(Table2[[#This Row],[Bin_1]]=Table2[[#This Row],[Bin_2]],Table2[[#This Row],[Bin_1]]=Table2[[#This Row],[Bin_3]],Table2[[#This Row],[Bin_2]]=Table2[[#This Row],[Bin_3]]))","v":1}]
[null,"","","Johnson",null,"","Brown","Davis",{"$f":"--NOT(OR(Table2[[#This Row],[Bin_1]]=Table2[[#This Row],[Bin_2]],Table2[[#This Row],[Bin_1]]=Table2[[#This Row],[Bin_3]],Table2[[#This Row],[Bin_2]]=Table2[[#This Row],[Bin_3]]))","v":1}]
[null,"Jackson","Taylor","Moore",null,"","Brown","Moore",{"$f":"--NOT(OR(Table2[[#This Row],[Bin_1]]=Table2[[#This Row],[Bin_2]],Table2[[#This Row],[Bin_1]]=Table2[[#This Row],[Bin_3]],Table2[[#This Row],[Bin_2]]=Table2[[#This Row],[Bin_3]]))","v":1}]
[null,"Moore","Anderson","Davis",null,"","Brown","Smith",{"$f":"--NOT(OR(Table2[[#This Row],[Bin_1]]=Table2[[#This Row],[Bin_2]],Table2[[#This Row],[Bin_1]]=Table2[[#This Row],[Bin_3]],Table2[[#This Row],[Bin_2]]=Table2[[#This Row],[Bin_3]]))","v":1}]
[null,"Smith","Wilson","Anderson",null,"","Davis","Wilson",{"$f":"--NOT(OR(Table2[[#This Row],[Bin_1]]=Table2[[#This Row],[Bin_2]],Table2[[#This Row],[Bin_1]]=Table2[[#This Row],[Bin_3]],Table2[[#This Row],[Bin_2]]=Table2[[#This Row],[Bin_3]]))","v":1}]
[null,"Moore","Johnson","",null,"","Jackson","Anderson",{"$f":"--NOT(OR(Table2[[#This Row],[Bin_1]]=Table2[[#This Row],[Bin_2]],Table2[[#This Row],[Bin_1]]=Table2[[#This Row],[Bin_3]],Table2[[#This Row],[Bin_2]]=Table2[[#This Row],[Bin_3]]))","v":1}]
[null,"Moore","Anderson","Taylor",null,"","Jackson","Jones",{"$f":"--NOT(OR(Table2[[#This Row],[Bin_1]]=Table2[[#This Row],[Bin_2]],Table2[[#This Row],[Bin_1]]=Table2[[#This Row],[Bin_3]],Table2[[#This Row],[Bin_2]]=Table2[[#This Row],[Bin_3]]))","v":1}]
[null,"Thomas","Johnson","",null,"","Jackson","Smith",{"$f":"--NOT(OR(Table2[[#This Row],[Bin_1]]=Table2[[#This Row],[Bin_2]],Table2[[#This Row],[Bin_1]]=Table2[[#This Row],[Bin_3]],Table2[[#This Row],[Bin_2]]=Table2[[#This Row],[Bin_3]]))","v":1}]
[null,"Miller","Anderson","Jones",null,"","Jackson","Taylor",{"$f":"--NOT(OR(Table2[[#This Row],[Bin_1]]=Table2[[#This Row],[Bin_2]],Table2[[#This Row],[Bin_1]]=Table2[[#This Row],[Bin_3]],Table2[[#This Row],[Bin_2]]=Table2[[#This Row],[Bin_3]]))","v":1}]
[null,"Johnson","Moore","",null,"","Jackson","Wilson",{"$f":"--NOT(OR(Table2[[#This Row],[Bin_1]]=Table2[[#This Row],[Bin_2]],Table2[[#This Row],[Bin_1]]=Table2[[#This Row],[Bin_3]],Table2[[#This Row],[Bin_2]]=Table2[[#This Row],[Bin_3]]))","v":1}]
[null,"Moore","","Miller",null,"","Johnson","Moore",{"$f":"--NOT(OR(Table2[[#This Row],[Bin_1]]=Table2[[#This Row],[Bin_2]],Table2[[#This Row],[Bin_1]]=Table2[[#This Row],[Bin_3]],Table2[[#This Row],[Bin_2]]=Table2[[#This Row],[Bin_3]]))","v":1}]
[null,"Jones","","",null,"","Johnson","Thomas",{"$f":"--NOT(OR(Table2[[#This Row],[Bin_1]]=Table2[[#This Row],[Bin_2]],Table2[[#This Row],[Bin_1]]=Table2[[#This Row],[Bin_3]],Table2[[#This Row],[Bin_2]]=Table2[[#This Row],[Bin_3]]))","v":1}]
[null,"Anderson","Wilson","Jackson",null,"","Jones","Miller",{"$f":"--NOT(OR(Table2[[#This Row],[Bin_1]]=Table2[[#This Row],[Bin_2]],Table2[[#This Row],[Bin_1]]=Table2[[#This Row],[Bin_3]],Table2[[#This Row],[Bin_2]]=Table2[[#This Row],[Bin_3]]))","v":1}]
[null,"","","Thomas",null,"","Jones","Moore",{"$f":"--NOT(OR(Table2[[#This Row],[Bin_1]]=Table2[[#This Row],[Bin_2]],Table2[[#This Row],[Bin_1]]=Table2[[#This Row],[Bin_3]],Table2[[#This Row],[Bin_2]]=Table2[[#This Row],[Bin_3]]))","v":1}]
[null,"Jones","Taylor","Thomas",null,"","Jones","Wilson",{"$f":"--NOT(OR(Table2[[#This Row],[Bin_1]]=Table2[[#This Row],[Bin_2]],Table2[[#This Row],[Bin_1]]=Table2[[#This Row],[Bin_3]],Table2[[#This Row],[Bin_2]]=Table2[[#This Row],[Bin_3]]))","v":1}]
[null,"Miller","Jones","Williams",null,"","Moore","Miller",{"$f":"--NOT(OR(Table2[[#This Row],[Bin_1]]=Table2[[#This Row],[Bin_2]],Table2[[#This Row],[Bin_1]]=Table2[[#This Row],[Bin_3]],Table2[[#This Row],[Bin_2]]=Table2[[#This Row],[Bin_3]]))","v":1}]
[null,"Williams","Moore","",null,"","Smith","Davis",{"$f":"--NOT(OR(Table2[[#This Row],[Bin_1]]=Table2[[#This Row],[Bin_2]],Table2[[#This Row],[Bin_1]]=Table2[[#This Row],[Bin_3]],Table2[[#This Row],[Bin_2]]=Table2[[#This Row],[Bin_3]]))","v":1}]
[null,"Brown","Thomas","Anderson",null,"","Taylor","Anderson",{"$f":"--NOT(OR(Table2[[#This Row],[Bin_1]]=Table2[[#This Row],[Bin_2]],Table2[[#This Row],[Bin_1]]=Table2[[#This Row],[Bin_3]],Table2[[#This Row],[Bin_2]]=Table2[[#This Row],[Bin_3]]))","v":1}]
[null,"Thomas","Taylor","Johnson",null,"","Taylor","Johnson",{"$f":"--NOT(OR(Table2[[#This Row],[Bin_1]]=Table2[[#This Row],[Bin_2]],Table2[[#This Row],[Bin_1]]=Table2[[#This Row],[Bin_3]],Table2[[#This Row],[Bin_2]]=Table2[[#This Row],[Bin_3]]))","v":1}]
[null,"Jones","Jones","Davis",null,"","Taylor","Smith",{"$f":"--NOT(OR(Table2[[#This Row],[Bin_1]]=Table2[[#This Row],[Bin_2]],Table2[[#This Row],[Bin_1]]=Table2[[#This Row],[Bin_3]],Table2[[#This Row],[Bin_2]]=Table2[[#This Row],[Bin_3]]))","v":1}]
[null,"Jones","Wilson","Johnson",null,"","Thomas","Moore",{"$f":"--NOT(OR(Table2[[#This Row],[Bin_1]]=Table2[[#This Row],[Bin_2]],Table2[[#This Row],[Bin_1]]=Table2[[#This Row],[Bin_3]],Table2[[#This Row],[Bin_2]]=Table2[[#This Row],[Bin_3]]))","v":1}]
[null,"","Thomas","",null,"","Thomas","Wilson",{"$f":"--NOT(OR(Table2[[#This Row],[Bin_1]]=Table2[[#This Row],[Bin_2]],Table2[[#This Row],[Bin_1]]=Table2[[#This Row],[Bin_3]],Table2[[#This Row],[Bin_2]]=Table2[[#This Row],[Bin_3]]))","v":1}]
[null,"Moore","Brown","Wilson",null,"","Williams","Jones",{"$f":"--NOT(OR(Table2[[#This Row],[Bin_1]]=Table2[[#This Row],[Bin_2]],Table2[[#This Row],[Bin_1]]=Table2[[#This Row],[Bin_3]],Table2[[#This Row],[Bin_2]]=Table2[[#This Row],[Bin_3]]))","v":1}]
[null,"Davis","Taylor","Johnson",null,"","Wilson","Brown",{"$f":"--NOT(OR(Table2[[#This Row],[Bin_1]]=Table2[[#This Row],[Bin_2]],Table2[[#This Row],[Bin_1]]=Table2[[#This Row],[Bin_3]],Table2[[#This Row],[Bin_2]]=Table2[[#This Row],[Bin_3]]))","v":1}]
[null,"Thomas","Davis","Jackson",null,"","Wilson","Taylor",{"$f":"--NOT(OR(Table2[[#This Row],[Bin_1]]=Table2[[#This Row],[Bin_2]],Table2[[#This Row],[Bin_1]]=Table2[[#This Row],[Bin_3]],Table2[[#This Row],[Bin_2]]=Table2[[#This Row],[Bin_3]]))","v":1}]
[null,"","Jackson","Anderson",null,"Anderson","","Jones",{"$f":"--NOT(OR(Table2[[#This Row],[Bin_1]]=Table2[[#This Row],[Bin_2]],Table2[[#This Row],[Bin_1]]=Table2[[#This Row],[Bin_3]],Table2[[#This Row],[Bin_2]]=Table2[[#This Row],[Bin_3]]))","v":1}]
[null,"Brown","Smith","Davis",null,"Anderson","","Miller",{"$f":"--NOT(OR(Table2[[#This Row],[Bin_1]]=Table2[[#This Row],[Bin_2]],Table2[[#This Row],[Bin_1]]=Table2[[#This Row],[Bin_3]],Table2[[#This Row],[Bin_2]]=Table2[[#This Row],[Bin_3]]))","v":1}]
[null,"Johnson","Thomas","",null,"Anderson","","Smith",{"$f":"--NOT(OR(Table2[[#This Row],[Bin_1]]=Table2[[#This Row],[Bin_2]],Table2[[#This Row],[Bin_1]]=Table2[[#This Row],[Bin_3]],Table2[[#This Row],[Bin_2]]=Table2[[#This Row],[Bin_3]]))","v":1}]
[null,"Anderson","Anderson","Miller",null,"Anderson","Brown","Miller",{"$f":"--NOT(OR(Table2[[#This Row],[Bin_1]]=Table2[[#This Row],[Bin_2]],Table2[[#This Row],[Bin_1]]=Table2[[#This Row],[Bin_3]],Table2[[#This Row],[Bin_2]]=Table2[[#This Row],[Bin_3]]))","v":1}]
[null,"Williams","Taylor","Miller",null,"Anderson","Brown","Williams",{"$f":"--NOT(OR(Table2[[#This Row],[Bin_1]]=Table2[[#This Row],[Bin_2]],Table2[[#This Row],[Bin_1]]=Table2[[#This Row],[Bin_3]],Table2[[#This Row],[Bin_2]]=Table2[[#This Row],[Bin_3]]))","v":1}]
[null,"Anderson","Jones","Johnson",null,"Anderson","Davis","",{"$f":"--NOT(OR(Table2[[#This Row],[Bin_1]]=Table2[[#This Row],[Bin_2]],Table2[[#This Row],[Bin_1]]=Table2[[#This Row],[Bin_3]],Table2[[#This Row],[Bin_2]]=Table2[[#This Row],[Bin_3]]))","v":1}]
[null,"","Anderson","Smith",null,"Anderson","Jackson","Jones",{"$f":"--NOT(OR(Table2[[#This Row],[Bin_1]]=Table2[[#This Row],[Bin_2]],Table2[[#This Row],[Bin_1]]=Table2[[#This Row],[Bin_3]],Table2[[#This Row],[Bin_2]]=Table2[[#This Row],[Bin_3]]))","v":1}]
[null,"Jones","Smith","Smith",null,"Anderson","Jackson","Williams",{"$f":"--NOT(OR(Table2[[#This Row],[Bin_1]]=Table2[[#This Row],[Bin_2]],Table2[[#This Row],[Bin_1]]=Table2[[#This Row],[Bin_3]],Table2[[#This Row],[Bin_2]]=Table2[[#This Row],[Bin_3]]))","v":1}]
[null,"Williams","Wilson","Jones",null,"Anderson","Johnson","",{"$f":"--NOT(OR(Table2[[#This Row],[Bin_1]]=Table2[[#This Row],[Bin_2]],Table2[[#This Row],[Bin_1]]=Table2[[#This Row],[Bin_3]],Table2[[#This Row],[Bin_2]]=Table2[[#This Row],[Bin_3]]))","v":1}]
[null,"Thomas","Taylor","Williams",null,"Anderson","Johnson","Taylor",{"$f":"--NOT(OR(Table2[[#This Row],[Bin_1]]=Table2[[#This Row],[Bin_2]],Table2[[#This Row],[Bin_1]]=Table2[[#This Row],[Bin_3]],Table2[[#This Row],[Bin_2]]=Table2[[#This Row],[Bin_3]]))","v":1}]
[null,"Jones","Williams","Moore",null,"Anderson","Jones","Johnson",{"$f":"--NOT(OR(Table2[[#This Row],[Bin_1]]=Table2[[#This Row],[Bin_2]],Table2[[#This Row],[Bin_1]]=Table2[[#This Row],[Bin_3]],Table2[[#This Row],[Bin_2]]=Table2[[#This Row],[Bin_3]]))","v":1}]
[null,"Moore","Moore","Wilson",null,"Anderson","Jones","Taylor",{"$f":"--NOT(OR(Table2[[#This Row],[Bin_1]]=Table2[[#This Row],[Bin_2]],Table2[[#This Row],[Bin_1]]=Table2[[#This Row],[Bin_3]],Table2[[#This Row],[Bin_2]]=Table2[[#This Row],[Bin_3]]))","v":1}]
[null,"Wilson","Wilson","Anderson",null,"Anderson","Miller","Taylor",{"$f":"--NOT(OR(Table2[[#This Row],[Bin_1]]=Table2[[#This Row],[Bin_2]],Table2[[#This Row],[Bin_1]]=Table2[[#This Row],[Bin_3]],Table2[[#This Row],[Bin_2]]=Table2[[#This Row],[Bin_3]]))","v":1}]
[null,"Jones","","Taylor",null,"Anderson","Moore","Taylor",{"$f":"--NOT(OR(Table2[[#This Row],[Bin_1]]=Table2[[#This Row],[Bin_2]],Table2[[#This Row],[Bin_1]]=Table2[[#This Row],[Bin_3]],Table2[[#This Row],[Bin_2]]=Table2[[#This Row],[Bin_3]]))","v":1}]
[null,"Miller","Davis","",null,"Anderson","Smith","",{"$f":"--NOT(OR(Table2[[#This Row],[Bin_1]]=Table2[[#This Row],[Bin_2]],Table2[[#This Row],[Bin_1]]=Table2[[#This Row],[Bin_3]],Table2[[#This Row],[Bin_2]]=Table2[[#This Row],[Bin_3]]))","v":1}]
[null,"Miller","Anderson","Taylor",null,"Anderson","Smith","Davis",{"$f":"--NOT(OR(Table2[[#This Row],[Bin_1]]=Table2[[#This Row],[Bin_2]],Table2[[#This Row],[Bin_1]]=Table2[[#This Row],[Bin_3]],Table2[[#This Row],[Bin_2]]=Table2[[#This Row],[Bin_3]]))","v":1}]
[null,"Wilson","Brown","Johnson",null,"Anderson","Taylor","",{"$f":"--NOT(OR(Table2[[#This Row],[Bin_1]]=Table2[[#This Row],[Bin_2]],Table2[[#This Row],[Bin_1]]=Table2[[#This Row],[Bin_3]],Table2[[#This Row],[Bin_2]]=Table2[[#This Row],[Bin_3]]))","v":1}]
[null,"Davis","Miller","Moore",null,"Anderson","Taylor","Jackson",{"$f":"--NOT(OR(Table2[[#This Row],[Bin_1]]=Table2[[#This Row],[Bin_2]],Table2[[#This Row],[Bin_1]]=Table2[[#This Row],[Bin_3]],Table2[[#This Row],[Bin_2]]=Table2[[#This Row],[Bin_3]]))","v":1}]
[null,"Taylor","Miller","Johnson",null,"Anderson","Taylor","Jones",{"$f":"--NOT(OR(Table2[[#This Row],[Bin_1]]=Table2[[#This Row],[Bin_2]],Table2[[#This Row],[Bin_1]]=Table2[[#This Row],[Bin_3]],Table2[[#This Row],[Bin_2]]=Table2[[#This Row],[Bin_3]]))","v":1}]
[null,"Taylor","Wilson","Wilson",null,"Anderson","Thomas","Johnson",{"$f":"--NOT(OR(Table2[[#This Row],[Bin_1]]=Table2[[#This Row],[Bin_2]],Table2[[#This Row],[Bin_1]]=Table2[[#This Row],[Bin_3]],Table2[[#This Row],[Bin_2]]=Table2[[#This Row],[Bin_3]]))","v":1}]
[null,"Jackson","","Moore",null,"Anderson","Thomas","Wilson",{"$f":"--NOT(OR(Table2[[#This Row],[Bin_1]]=Table2[[#This Row],[Bin_2]],Table2[[#This Row],[Bin_1]]=Table2[[#This Row],[Bin_3]],Table2[[#This Row],[Bin_2]]=Table2[[#This Row],[Bin_3]]))","v":1}]
[null,"Jackson","Davis","Anderson",null,"Anderson","Wilson","",{"$f":"--NOT(OR(Table2[[#This Row],[Bin_1]]=Table2[[#This Row],[Bin_2]],Table2[[#This Row],[Bin_1]]=Table2[[#This Row],[Bin_3]],Table2[[#This Row],[Bin_2]]=Table2[[#This Row],[Bin_3]]))","v":1}]
[null,"Miller","Jackson","Johnson",null,"Anderson","Wilson","Jackson",{"$f":"--NOT(OR(Table2[[#This Row],[Bin_1]]=Table2[[#This Row],[Bin_2]],Table2[[#This Row],[Bin_1]]=Table2[[#This Row],[Bin_3]],Table2[[#This Row],[Bin_2]]=Table2[[#This Row],[Bin_3]]))","v":1}]
[null,"Wilson","Brown","Moore",null,"Anderson","Wilson","Williams",{"$f":"--NOT(OR(Table2[[#This Row],[Bin_1]]=Table2[[#This Row],[Bin_2]],Table2[[#This Row],[Bin_1]]=Table2[[#This Row],[Bin_3]],Table2[[#This Row],[Bin_2]]=Table2[[#This Row],[Bin_3]]))","v":1}]
[null,"Smith","Miller","Williams",null,"Brown","","Jones",{"$f":"--NOT(OR(Table2[[#This Row],[Bin_1]]=Table2[[#This Row],[Bin_2]],Table2[[#This Row],[Bin_1]]=Table2[[#This Row],[Bin_3]],Table2[[#This Row],[Bin_2]]=Table2[[#This Row],[Bin_3]]))","v":1}]
[null,"Anderson","Smith","Davis",null,"Brown","","Taylor",{"$f":"--NOT(OR(Table2[[#This Row],[Bin_1]]=Table2[[#This Row],[Bin_2]],Table2[[#This Row],[Bin_1]]=Table2[[#This Row],[Bin_3]],Table2[[#This Row],[Bin_2]]=Table2[[#This Row],[Bin_3]]))","v":1}]
[null,"Smith","Smith","Anderson",null,"Brown","Davis","Anderson",{"$f":"--NOT(OR(Table2[[#This Row],[Bin_1]]=Table2[[#This Row],[Bin_2]],Table2[[#This Row],[Bin_1]]=Table2[[#This Row],[Bin_3]],Table2[[#This Row],[Bin_2]]=Table2[[#This Row],[Bin_3]]))","v":1}]
[null,"Anderson","Jackson","Jones",null,"Brown","Davis","Jackson",{"$f":"--NOT(OR(Table2[[#This Row],[Bin_1]]=Table2[[#This Row],[Bin_2]],Table2[[#This Row],[Bin_1]]=Table2[[#This Row],[Bin_3]],Table2[[#This Row],[Bin_2]]=Table2[[#This Row],[Bin_3]]))","v":1}]
[null,"Jones","Davis","Davis",null,"Brown","Davis","Johnson",{"$f":"--NOT(OR(Table2[[#This Row],[Bin_1]]=Table2[[#This Row],[Bin_2]],Table2[[#This Row],[Bin_1]]=Table2[[#This Row],[Bin_3]],Table2[[#This Row],[Bin_2]]=Table2[[#This Row],[Bin_3]]))","v":1}]
[null,"Williams","Jackson","Anderson",null,"Brown","Davis","Thomas",{"$f":"--NOT(OR(Table2[[#This Row],[Bin_1]]=Table2[[#This Row],[Bin_2]],Table2[[#This Row],[Bin_1]]=Table2[[#This Row],[Bin_3]],Table2[[#This Row],[Bin_2]]=Table2[[#This Row],[Bin_3]]))","v":1}]
[null,"","Taylor","",null,"Brown","Johnson","Anderson",{"$f":"--NOT(OR(Table2[[#This Row],[Bin_1]]=Table2[[#This Row],[Bin_2]],Table2[[#This Row],[Bin_1]]=Table2[[#This Row],[Bin_3]],Table2[[#This Row],[Bin_2]]=Table2[[#This Row],[Bin_3]]))","v":1}]
[null,"Taylor","","",null,"Brown","Moore","",{"$f":"--NOT(OR(Table2[[#This Row],[Bin_1]]=Table2[[#This Row],[Bin_2]],Table2[[#This Row],[Bin_1]]=Table2[[#This Row],[Bin_3]],Table2[[#This Row],[Bin_2]]=Table2[[#This Row],[Bin_3]]))","v":1}]
[null,"Johnson","Brown","Miller",null,"Brown","Smith","Davis",{"$f":"--NOT(OR(Table2[[#This Row],[Bin_1]]=Table2[[#This Row],[Bin_2]],Table2[[#This Row],[Bin_1]]=Table2[[#This Row],[Bin_3]],Table2[[#This Row],[Bin_2]]=Table2[[#This Row],[Bin_3]]))","v":1}]
[null,"Wilson","Smith","Wilson",null,"Brown","Smith","Johnson",{"$f":"--NOT(OR(Table2[[#This Row],[Bin_1]]=Table2[[#This Row],[Bin_2]],Table2[[#This Row],[Bin_1]]=Table2[[#This Row],[Bin_3]],Table2[[#This Row],[Bin_2]]=Table2[[#This Row],[Bin_3]]))","v":1}]
[null,"Moore","Brown","Jackson",null,"Brown","Smith","Miller",{"$f":"--NOT(OR(Table2[[#This Row],[Bin_1]]=Table2[[#This Row],[Bin_2]],Table2[[#This Row],[Bin_1]]=Table2[[#This Row],[Bin_3]],Table2[[#This Row],[Bin_2]]=Table2[[#This Row],[Bin_3]]))","v":1}]
[null,"Jones","","Moore",null,"Brown","Taylor","Anderson",{"$f":"--NOT(OR(Table2[[#This Row],[Bin_1]]=Table2[[#This Row],[Bin_2]],Table2[[#This Row],[Bin_1]]=Table2[[#This Row],[Bin_3]],Table2[[#This Row],[Bin_2]]=Table2[[#This Row],[Bin_3]]))","v":1}]
[null,"Anderson","Thomas","Johnson",null,"Brown","Thomas","Anderson",{"$f":"--NOT(OR(Table2[[#This Row],[Bin_1]]=Table2[[#This Row],[Bin_2]],Table2[[#This Row],[Bin_1]]=Table2[[#This Row],[Bin_3]],Table2[[#This Row],[Bin_2]]=Table2[[#This Row],[Bin_3]]))","v":1}]
[null,"Jackson","Williams","Wilson",null,"Brown","Thomas","Miller",{"$f":"--NOT(OR(Table2[[#This Row],[Bin_1]]=Table2[[#This Row],[Bin_2]],Table2[[#This Row],[Bin_1]]=Table2[[#This Row],[Bin_3]],Table2[[#This Row],[Bin_2]]=Table2[[#This Row],[Bin_3]]))","v":1}]
[null,"Johnson","Jones","Davis",null,"Brown","Thomas","Taylor",{"$f":"--NOT(OR(Table2[[#This Row],[Bin_1]]=Table2[[#This Row],[Bin_2]],Table2[[#This Row],[Bin_1]]=Table2[[#This Row],[Bin_3]],Table2[[#This Row],[Bin_2]]=Table2[[#This Row],[Bin_3]]))","v":1}]
[null,"","Thomas","Wilson",null,"Brown","Williams","Wilson",{"$f":"--NOT(OR(Table2[[#This Row],[Bin_1]]=Table2[[#This Row],[Bin_2]],Table2[[#This Row],[Bin_1]]=Table2[[#This Row],[Bin_3]],Table2[[#This Row],[Bin_2]]=Table2[[#This Row],[Bin_3]]))","v":1}]
[null,"Brown","","Jones",null,"Brown","Wilson","Jackson",{"$f":"--NOT(OR(Table2[[#This Row],[Bin_1]]=Table2[[#This Row],[Bin_2]],Table2[[#This Row],[Bin_1]]=Table2[[#This Row],[Bin_3]],Table2[[#This Row],[Bin_2]]=Table2[[#This Row],[Bin_3]]))","v":1}]
[null,"Brown","Davis","Jackson",null,"Davis","","Anderson",{"$f":"--NOT(OR(Table2[[#This Row],[Bin_1]]=Table2[[#This Row],[Bin_2]],Table2[[#This Row],[Bin_1]]=Table2[[#This Row],[Bin_3]],Table2[[#This Row],[Bin_2]]=Table2[[#This Row],[Bin_3]]))","v":1}]
[null,"Johnson","Smith","Miller",null,"Davis","","Smith",{"$f":"--NOT(OR(Table2[[#This Row],[Bin_1]]=Table2[[#This Row],[Bin_2]],Table2[[#This Row],[Bin_1]]=Table2[[#This Row],[Bin_3]],Table2[[#This Row],[Bin_2]]=Table2[[#This Row],[Bin_3]]))","v":1}]
[null,"Jackson","Jackson","Thomas",null,"Davis","","Williams",{"$f":"--NOT(OR(Table2[[#This Row],[Bin_1]]=Table2[[#This Row],[Bin_2]],Table2[[#This Row],[Bin_1]]=Table2[[#This Row],[Bin_3]],Table2[[#This Row],[Bin_2]]=Table2[[#This Row],[Bin_3]]))","v":1}]
[null,"Jackson","Davis","",null,"Davis","","Wilson",{"$f":"--NOT(OR(Table2[[#This Row],[Bin_1]]=Table2[[#This Row],[Bin_2]],Table2[[#This Row],[Bin_1]]=Table2[[#This Row],[Bin_3]],Table2[[#This Row],[Bin_2]]=Table2[[#This Row],[Bin_3]]))","v":1}]
[null,"Anderson","Johnson","Taylor",null,"Davis","Anderson","Thomas",{"$f":"--NOT(OR(Table2[[#This Row],[Bin_1]]=Table2[[#This Row],[Bin_2]],Table2[[#This Row],[Bin_1]]=Table2[[#This Row],[Bin_3]],Table2[[#This Row],[Bin_2]]=Table2[[#This Row],[Bin_3]]))","v":1}]
[null,"Taylor","","Thomas",null,"Davis","Brown","",{"$f":"--NOT(OR(Table2[[#This Row],[Bin_1]]=Table2[[#This Row],[Bin_2]],Table2[[#This Row],[Bin_1]]=Table2[[#This Row],[Bin_3]],Table2[[#This Row],[Bin_2]]=Table2[[#This Row],[Bin_3]]))","v":1}]
[null,"","Davis","Wilson",null,"Davis","Brown","Johnson",{"$f":"--NOT(OR(Table2[[#This Row],[Bin_1]]=Table2[[#This Row],[Bin_2]],Table2[[#This Row],[Bin_1]]=Table2[[#This Row],[Bin_3]],Table2[[#This Row],[Bin_2]]=Table2[[#This Row],[Bin_3]]))","v":1}]
[null,"","Moore","Miller",null,"Davis","Johnson","Anderson",{"$f":"--NOT(OR(Table2[[#This Row],[Bin_1]]=Table2[[#This Row],[Bin_2]],Table2[[#This Row],[Bin_1]]=Table2[[#This Row],[Bin_3]],Table2[[#This Row],[Bin_2]]=Table2[[#This Row],[Bin_3]]))","v":1}]
[null,"Taylor","Jackson","",null,"Davis","Johnson","Jackson",{"$f":"--NOT(OR(Table2[[#This Row],[Bin_1]]=Table2[[#This Row],[Bin_2]],Table2[[#This Row],[Bin_1]]=Table2[[#This Row],[Bin_3]],Table2[[#This Row],[Bin_2]]=Table2[[#This Row],[Bin_3]]))","v":1}]
[null,"","Anderson","Wilson",null,"Davis","Johnson","Jones",{"$f":"--NOT(OR(Table2[[#This Row],[Bin_1]]=Table2[[#This Row],[Bin_2]],Table2[[#This Row],[Bin_1]]=Table2[[#This Row],[Bin_3]],Table2[[#This Row],[Bin_2]]=Table2[[#This Row],[Bin_3]]))","v":1}]
[null,"Wilson","Moore","",null,"Davis","Johnson","Smith",{"$f":"--NOT(OR(Table2[[#This Row],[Bin_1]]=Table2[[#This Row],[Bin_2]],Table2[[#This Row],[Bin_1]]=Table2[[#This Row],[Bin_3]],Table2[[#This Row],[Bin_2]]=Table2[[#This Row],[Bin_3]]))","v":1}]
[null,"","Williams","Jones",null,"Davis","Jones","Moore",{"$f":"--NOT(OR(Table2[[#This Row],[Bin_1]]=Table2[[#This Row],[Bin_2]],Table2[[#This Row],[Bin_1]]=Table2[[#This Row],[Bin_3]],Table2[[#This Row],[Bin_2]]=Table2[[#This Row],[Bin_3]]))","v":1}]
[null,"Anderson","Taylor","",null,"Davis","Jones","Smith",{"$f":"--NOT(OR(Table2[[#This Row],[Bin_1]]=Table2[[#This Row],[Bin_2]],Table2[[#This Row],[Bin_1]]=Table2[[#This Row],[Bin_3]],Table2[[#This Row],[Bin_2]]=Table2[[#This Row],[Bin_3]]))","v":1}]
[null,"Wilson","Jackson","",null,"Davis","Miller","Moore",{"$f":"--NOT(OR(Table2[[#This Row],[Bin_1]]=Table2[[#This Row],[Bin_2]],Table2[[#This Row],[Bin_1]]=Table2[[#This Row],[Bin_3]],Table2[[#This Row],[Bin_2]]=Table2[[#This Row],[Bin_3]]))","v":1}]
[null,"Moore","Williams","Johnson",null,"Davis","Moore","Jones",{"$f":"--NOT(OR(Table2[[#This Row],[Bin_1]]=Table2[[#This Row],[Bin_2]],Table2[[#This Row],[Bin_1]]=Table2[[#This Row],[Bin_3]],Table2[[#This Row],[Bin_2]]=Table2[[#This Row],[Bin_3]]))","v":1}]
[null,"Thomas","Miller","Jackson",null,"Davis","Moore","Miller",{"$f":"--NOT(OR(Table2[[#This Row],[Bin_1]]=Table2[[#This Row],[Bin_2]],Table2[[#This Row],[Bin_1]]=Table2[[#This Row],[Bin_3]],Table2[[#This Row],[Bin_2]]=Table2[[#This Row],[Bin_3]]))","v":1}]
[null,"Jones","Jones","",null,"Davis","Moore","Thomas",{"$f":"--NOT(OR(Table2[[#This Row],[Bin_1]]=Table2[[#This Row],[Bin_2]],Table2[[#This Row],[Bin_1]]=Table2[[#This Row],[Bin_3]],Table2[[#This Row],[Bin_2]]=Table2[[#This Row],[Bin_3]]))","v":1}]
[null,"","Davis","",null,"Davis","Taylor","Johnson",{"$f":"--NOT(OR(Table2[[#This Row],[Bin_1]]=Table2[[#This Row],[Bin_2]],Table2[[#This Row],[Bin_1]]=Table2[[#This Row],[Bin_3]],Table2[[#This Row],[Bin_2]]=Table2[[#This Row],[Bin_3]]))","v":1}]
[null,"Johnson","","",null,"Davis","Taylor","Thomas",{"$f":"--NOT(OR(Table2[[#This Row],[Bin_1]]=Table2[[#This Row],[Bin_2]],Table2[[#This Row],[Bin_1]]=Table2[[#This Row],[Bin_3]],Table2[[#This Row],[Bin_2]]=Table2[[#This Row],[Bin_3]]))","v":1}]
[null,"Anderson","Brown","Miller",null,"Davis","Taylor","Wilson",{"$f":"--NOT(OR(Table2[[#This Row],[Bin_1]]=Table2[[#This Row],[Bin_2]],Table2[[#This Row],[Bin_1]]=Table2[[#This Row],[Bin_3]],Table2[[#This Row],[Bin_2]]=Table2[[#This Row],[Bin_3]]))","v":1}]
[null,"Wilson","Taylor","Anderson",null,"Davis","Thomas","Williams",{"$f":"--NOT(OR(Table2[[#This Row],[Bin_1]]=Table2[[#This Row],[Bin_2]],Table2[[#This Row],[Bin_1]]=Table2[[#This Row],[Bin_3]],Table2[[#This Row],[Bin_2]]=Table2[[#This Row],[Bin_3]]))","v":1}]
[null,"Davis","Taylor","Wilson",null,"Davis","Williams","Johnson",{"$f":"--NOT(OR(Table2[[#This Row],[Bin_1]]=Table2[[#This Row],[Bin_2]],Table2[[#This Row],[Bin_1]]=Table2[[#This Row],[Bin_3]],Table2[[#This Row],[Bin_2]]=Table2[[#This Row],[Bin_3]]))","v":1}]
[null,"Davis","Wilson","",null,"Davis","Wilson","",{"$f":"--NOT(OR(Table2[[#This Row],[Bin_1]]=Table2[[#This Row],[Bin_2]],Table2[[#This Row],[Bin_1]]=Table2[[#This Row],[Bin_3]],Table2[[#This Row],[Bin_2]]=Table2[[#This Row],[Bin_3]]))","v":1}]
[null,"Moore","Moore","Taylor",null,"Davis","Wilson","Johnson",{"$f":"--NOT(OR(Table2[[#This Row],[Bin_1]]=Table2[[#This Row],[Bin_2]],Table2[[#This Row],[Bin_1]]=Table2[[#This Row],[Bin_3]],Table2[[#This Row],[Bin_2]]=Table2[[#This Row],[Bin_3]]))","v":1}]
[null,"Anderson","Jackson","Williams",null,"Davis","Wilson","Smith",{"$f":"--NOT(OR(Table2[[#This Row],[Bin_1]]=Table2[[#This Row],[Bin_2]],Table2[[#This Row],[Bin_1]]=Table2[[#This Row],[Bin_3]],Table2[[#This Row],[Bin_2]]=Table2[[#This Row],[Bin_3]]))","v":1}]
[null,"Smith","Wilson","",null,"Jackson","","Moore",{"$f":"--NOT(OR(Table2[[#This Row],[Bin_1]]=Table2[[#This Row],[Bin_2]],Table2[[#This Row],[Bin_1]]=Table2[[#This Row],[Bin_3]],Table2[[#This Row],[Bin_2]]=Table2[[#This Row],[Bin_3]]))","v":1}]
[null,"Thomas","Wilson","Jackson",null,"Jackson","","Wilson",{"$f":"--NOT(OR(Table2[[#This Row],[Bin_1]]=Table2[[#This Row],[Bin_2]],Table2[[#This Row],[Bin_1]]=Table2[[#This Row],[Bin_3]],Table2[[#This Row],[Bin_2]]=Table2[[#This Row],[Bin_3]]))","v":1}]
[null,"Anderson","Jackson","Anderson",null,"Jackson","Brown","Wilson",{"$f":"--NOT(OR(Table2[[#This Row],[Bin_1]]=Table2[[#This Row],[Bin_2]],Table2[[#This Row],[Bin_1]]=Table2[[#This Row],[Bin_3]],Table2[[#This Row],[Bin_2]]=Table2[[#This Row],[Bin_3]]))","v":1}]
[null,"","Jones","Miller",null,"Jackson","Davis","",{"$f":"--NOT(OR(Table2[[#This Row],[Bin_1]]=Table2[[#This Row],[Bin_2]],Table2[[#This Row],[Bin_1]]=Table2[[#This Row],[Bin_3]],Table2[[#This Row],[Bin_2]]=Table2[[#This Row],[Bin_3]]))","v":1}]
[null,"Brown","Moore","Brown",null,"Jackson","Davis","Anderson",{"$f":"--NOT(OR(Table2[[#This Row],[Bin_1]]=Table2[[#This Row],[Bin_2]],Table2[[#This Row],[Bin_1]]=Table2[[#This Row],[Bin_3]],Table2[[#This Row],[Bin_2]]=Table2[[#This Row],[Bin_3]]))","v":1}]
[null,"Davis","Johnson","Smith",null,"Jackson","Davis","Miller",{"$f":"--NOT(OR(Table2[[#This Row],[Bin_1]]=Table2[[#This Row],[Bin_2]],Table2[[#This Row],[Bin_1]]=Table2[[#This Row],[Bin_3]],Table2[[#This Row],[Bin_2]]=Table2[[#This Row],[Bin_3]]))","v":1}]
[null,"Brown","Moore","",null,"Jackson","Davis","Thomas",{"$f":"--NOT(OR(Table2[[#This Row],[Bin_1]]=Table2[[#This Row],[Bin_2]],Table2[[#This Row],[Bin_1]]=Table2[[#This Row],[Bin_3]],Table2[[#This Row],[Bin_2]]=Table2[[#This Row],[Bin_3]]))","v":1}]
[null,"Thomas","Miller","Anderson",null,"Jackson","Johnson","Jones",{"$f":"--NOT(OR(Table2[[#This Row],[Bin_1]]=Table2[[#This Row],[Bin_2]],Table2[[#This Row],[Bin_1]]=Table2[[#This Row],[Bin_3]],Table2[[#This Row],[Bin_2]]=Table2[[#This Row],[Bin_3]]))","v":1}]
[null,"Johnson","Taylor","Thomas",null,"Jackson","Jones","Moore",{"$f":"--NOT(OR(Table2[[#This Row],[Bin_1]]=Table2[[#This Row],[Bin_2]],Table2[[#This Row],[Bin_1]]=Table2[[#This Row],[Bin_3]],Table2[[#This Row],[Bin_2]]=Table2[[#This Row],[Bin_3]]))","v":1}]
[null,"Anderson","Brown","Williams",null,"Jackson","Miller","Smith",{"$f":"--NOT(OR(Table2[[#This Row],[Bin_1]]=Table2[[#This Row],[Bin_2]],Table2[[#This Row],[Bin_1]]=Table2[[#This Row],[Bin_3]],Table2[[#This Row],[Bin_2]]=Table2[[#This Row],[Bin_3]]))","v":1}]
[null,"Miller","Johnson","Jackson",null,"Jackson","Moore","Davis",{"$f":"--NOT(OR(Table2[[#This Row],[Bin_1]]=Table2[[#This Row],[Bin_2]],Table2[[#This Row],[Bin_1]]=Table2[[#This Row],[Bin_3]],Table2[[#This Row],[Bin_2]]=Table2[[#This Row],[Bin_3]]))","v":1}]
[null,"Thomas","Anderson","Smith",null,"Jackson","Moore","Miller",{"$f":"--NOT(OR(Table2[[#This Row],[Bin_1]]=Table2[[#This Row],[Bin_2]],Table2[[#This Row],[Bin_1]]=Table2[[#This Row],[Bin_3]],Table2[[#This Row],[Bin_2]]=Table2[[#This Row],[Bin_3]]))","v":1}]
[null,"","Jackson","Wilson",null,"Jackson","Smith","Anderson",{"$f":"--NOT(OR(Table2[[#This Row],[Bin_1]]=Table2[[#This Row],[Bin_2]],Table2[[#This Row],[Bin_1]]=Table2[[#This Row],[Bin_3]],Table2[[#This Row],[Bin_2]]=Table2[[#This Row],[Bin_3]]))","v":1}]
[null,"","Anderson","Brown",null,"Jackson","Smith","Taylor",{"$f":"--NOT(OR(Table2[[#This Row],[Bin_1]]=Table2[[#This Row],[Bin_2]],Table2[[#This Row],[Bin_1]]=Table2[[#This Row],[Bin_3]],Table2[[#This Row],[Bin_2]]=Table2[[#This Row],[Bin_3]]))","v":1}]
[null,"","Wilson","Taylor",null,"Jackson","Taylor","Moore",{"$f":"--NOT(OR(Table2[[#This Row],[Bin_1]]=Table2[[#This Row],[Bin_2]],Table2[[#This Row],[Bin_1]]=Table2[[#This Row],[Bin_3]],Table2[[#This Row],[Bin_2]]=Table2[[#This Row],[Bin_3]]))","v":1}]
[null,"Miller","Jones","Moore",null,"Jackson","Thomas","Anderson",{"$f":"--NOT(OR(Table2[[#This Row],[Bin_1]]=Table2[[#This Row],[Bin_2]],Table2[[#This Row],[Bin_1]]=Table2[[#This Row],[Bin_3]],Table2[[#This Row],[Bin_2]]=Table2[[#This Row],[Bin_3]]))","v":1}]
[null,"Williams","Taylor","Jackson",null,"Jackson","Thomas","Miller",{"$f":"--NOT(OR(Table2[[#This Row],[Bin_1]]=Table2[[#This Row],[Bin_2]],Table2[[#This Row],[Bin_1]]=Table2[[#This Row],[Bin_3]],Table2[[#This Row],[Bin_2]]=Table2[[#This Row],[Bin_3]]))","v":1}]
[null,"Moore","Johnson","Anderson",null,"Jackson","Williams","Wilson",{"$f":"--NOT(OR(Table2[[#This Row],[Bin_1]]=Table2[[#This Row],[Bin_2]],Table2[[#This Row],[Bin_1]]=Table2[[#This Row],[Bin_3]],Table2[[#This Row],[Bin_2]]=Table2[[#This Row],[Bin_3]]))","v":1}]
[null,"Miller","Davis","Wilson",null,"Jackson","Wilson","Brown",{"$f":"--NOT(OR(Table2[[#This Row],[Bin_1]]=Table2[[#This Row],[Bin_2]],Table2[[#This Row],[Bin_1]]=Table2[[#This Row],[Bin_3]],Table2[[#This Row],[Bin_2]]=Table2[[#This Row],[Bin_3]]))","v":1}]
[null,"Taylor","Jones","Jackson",null,"Johnson","Brown","Jones",{"$f":"--NOT(OR(Table2[[#This Row],[Bin_1]]=Table2[[#This Row],[Bin_2]],Table2[[#This Row],[Bin_1]]=Table2[[#This Row],[Bin_3]],Table2[[#This Row],[Bin_2]]=Table2[[#This Row],[Bin_3]]))","v":1}]
[null,"Thomas","","Moore",null,"Johnson","Brown","Miller",{"$f":"--NOT(OR(Table2[[#This Row],[Bin_1]]=Table2[[#This Row],[Bin_2]],Table2[[#This Row],[Bin_1]]=Table2[[#This Row],[Bin_3]],Table2[[#This Row],[Bin_2]]=Table2[[#This Row],[Bin_3]]))","v":1}]
[null,"Jones","Jackson","",null,"Johnson","Davis","",{"$f":"--NOT(OR(Table2[[#This Row],[Bin_1]]=Table2[[#This Row],[Bin_2]],Table2[[#This Row],[Bin_1]]=Table2[[#This Row],[Bin_3]],Table2[[#This Row],[Bin_2]]=Table2[[#This Row],[Bin_3]]))","v":1}]
[null,"Davis","","Williams",null,"Johnson","Jones","",{"$f":"--NOT(OR(Table2[[#This Row],[Bin_1]]=Table2[[#This Row],[Bin_2]],Table2[[#This Row],[Bin_1]]=Table2[[#This Row],[Bin_3]],Table2[[#This Row],[Bin_2]]=Table2[[#This Row],[Bin_3]]))","v":1}]
[null,"Brown","Davis","Thomas",null,"Johnson","Jones","Davis",{"$f":"--NOT(OR(Table2[[#This Row],[Bin_1]]=Table2[[#This Row],[Bin_2]],Table2[[#This Row],[Bin_1]]=Table2[[#This Row],[Bin_3]],Table2[[#This Row],[Bin_2]]=Table2[[#This Row],[Bin_3]]))","v":1}]
[null,"Brown","Davis","Anderson",null,"Johnson","Jones","Miller",{"$f":"--NOT(OR(Table2[[#This Row],[Bin_1]]=Table2[[#This Row],[Bin_2]],Table2[[#This Row],[Bin_1]]=Table2[[#This Row],[Bin_3]],Table2[[#This Row],[Bin_2]]=Table2[[#This Row],[Bin_3]]))","v":1}]
[null,"Miller","Wilson","Moore",null,"Johnson","Moore","",{"$f":"--NOT(OR(Table2[[#This Row],[Bin_1]]=Table2[[#This Row],[Bin_2]],Table2[[#This Row],[Bin_1]]=Table2[[#This Row],[Bin_3]],Table2[[#This Row],[Bin_2]]=Table2[[#This Row],[Bin_3]]))","v":1}]
[null,"Thomas","Davis","Miller",null,"Johnson","Moore","Miller",{"$f":"--NOT(OR(Table2[[#This Row],[Bin_1]]=Table2[[#This Row],[Bin_2]],Table2[[#This Row],[Bin_1]]=Table2[[#This Row],[Bin_3]],Table2[[#This Row],[Bin_2]]=Table2[[#This Row],[Bin_3]]))","v":1}]
[null,"Taylor","Moore","Anderson",null,"Johnson","Smith","Miller",{"$f":"--NOT(OR(Table2[[#This Row],[Bin_1]]=Table2[[#This Row],[Bin_2]],Table2[[#This Row],[Bin_1]]=Table2[[#This Row],[Bin_3]],Table2[[#This Row],[Bin_2]]=Table2[[#This Row],[Bin_3]]))","v":1}]
[null,"Jones","Jackson","Taylor",null,"Johnson","Taylor","Davis",{"$f":"--NOT(OR(Table2[[#This Row],[Bin_1]]=Table2[[#This Row],[Bin_2]],Table2[[#This Row],[Bin_1]]=Table2[[#This Row],[Bin_3]],Table2[[#This Row],[Bin_2]]=Table2[[#This Row],[Bin_3]]))","v":1}]
[null,"Jones","Davis","Jones",null,"Johnson","Taylor","Thomas",{"$f":"--NOT(OR(Table2[[#This Row],[Bin_1]]=Table2[[#This Row],[Bin_2]],Table2[[#This Row],[Bin_1]]=Table2[[#This Row],[Bin_3]],Table2[[#This Row],[Bin_2]]=Table2[[#This Row],[Bin_3]]))","v":1}]
[null,"Jones","Wilson","",null,"Johnson","Thomas","",{"$f":"--NOT(OR(Table2[[#This Row],[Bin_1]]=Table2[[#This Row],[Bin_2]],Table2[[#This Row],[Bin_1]]=Table2[[#This Row],[Bin_3]],Table2[[#This Row],[Bin_2]]=Table2[[#This Row],[Bin_3]]))","v":1}]
[null,"","Brown","Smith",null,"Johnson","Williams","",{"$f":"--NOT(OR(Table2[[#This Row],[Bin_1]]=Table2[[#This Row],[Bin_2]],Table2[[#This Row],[Bin_1]]=Table2[[#This Row],[Bin_3]],Table2[[#This Row],[Bin_2]]=Table2[[#This Row],[Bin_3]]))","v":1}]
[null,"Johnson","Jackson","Jackson",null,"Johnson","Williams","Anderson",{"$f":"--NOT(OR(Table2[[#This Row],[Bin_1]]=Table2[[#This Row],[Bin_2]],Table2[[#This Row],[Bin_1]]=Table2[[#This Row],[Bin_3]],Table2[[#This Row],[Bin_2]]=Table2[[#This Row],[Bin_3]]))","v":1}]
[null,"Taylor","Thomas","Brown",null,"Johnson","Wilson","Jones",{"$f":"--NOT(OR(Table2[[#This Row],[Bin_1]]=Table2[[#This Row],[Bin_2]],Table2[[#This Row],[Bin_1]]=Table2[[#This Row],[Bin_3]],Table2[[#This Row],[Bin_2]]=Table2[[#This Row],[Bin_3]]))","v":1}]
[null,"Smith","Davis","Smith",null,"Jones","","Moore",{"$f":"--NOT(OR(Table2[[#This Row],[Bin_1]]=Table2[[#This Row],[Bin_2]],Table2[[#This Row],[Bin_1]]=Table2[[#This Row],[Bin_3]],Table2[[#This Row],[Bin_2]]=Table2[[#This Row],[Bin_3]]))","v":1}]
[null,"Brown","Wilson","Jackson",null,"Jones","","Taylor",{"$f":"--NOT(OR(Table2[[#This Row],[Bin_1]]=Table2[[#This Row],[Bin_2]],Table2[[#This Row],[Bin_1]]=Table2[[#This Row],[Bin_3]],Table2[[#This Row],[Bin_2]]=Table2[[#This Row],[Bin_3]]))","v":1}]
[null,"","Brown","",null,"Jones","Anderson","Wilson",{"$f":"--NOT(OR(Table2[[#This Row],[Bin_1]]=Table2[[#This Row],[Bin_2]],Table2[[#This Row],[Bin_1]]=Table2[[#This Row],[Bin_3]],Table2[[#This Row],[Bin_2]]=Table2[[#This Row],[Bin_3]]))","v":1}]
[null,"Jones","Brown","Anderson",null,"Jones","Brown","",{"$f":"--NOT(OR(Table2[[#This Row],[Bin_1]]=Table2[[#This Row],[Bin_2]],Table2[[#This Row],[Bin_1]]=Table2[[#This Row],[Bin_3]],Table2[[#This Row],[Bin_2]]=Table2[[#This Row],[Bin_3]]))","v":1}]
[null,"Thomas","Williams","",null,"Jones","Brown","Anderson",{"$f":"--NOT(OR(Table2[[#This Row],[Bin_1]]=Table2[[#This Row],[Bin_2]],Table2[[#This Row],[Bin_1]]=Table2[[#This Row],[Bin_3]],Table2[[#This Row],[Bin_2]]=Table2[[#This Row],[Bin_3]]))","v":1}]
[null,"Johnson","Jones","Davis",null,"Jones","Jackson","",{"$f":"--NOT(OR(Table2[[#This Row],[Bin_1]]=Table2[[#This Row],[Bin_2]],Table2[[#This Row],[Bin_1]]=Table2[[#This Row],[Bin_3]],Table2[[#This Row],[Bin_2]]=Table2[[#This Row],[Bin_3]]))","v":1}]
[null,"Wilson","Jackson","Wilson",null,"Jones","Jackson","Moore",{"$f":"--NOT(OR(Table2[[#This Row],[Bin_1]]=Table2[[#This Row],[Bin_2]],Table2[[#This Row],[Bin_1]]=Table2[[#This Row],[Bin_3]],Table2[[#This Row],[Bin_2]]=Table2[[#This Row],[Bin_3]]))","v":1}]
[null,"Jones","Moore","Williams",null,"Jones","Jackson","Taylor",{"$f":"--NOT(OR(Table2[[#This Row],[Bin_1]]=Table2[[#This Row],[Bin_2]],Table2[[#This Row],[Bin_1]]=Table2[[#This Row],[Bin_3]],Table2[[#This Row],[Bin_2]]=Table2[[#This Row],[Bin_3]]))","v":1}]
[null,"Brown","Thomas","Miller",null,"Jones","Miller","Moore",{"$f":"--NOT(OR(Table2[[#This Row],[Bin_1]]=Table2[[#This Row],[Bin_2]],Table2[[#This Row],[Bin_1]]=Table2[[#This Row],[Bin_3]],Table2[[#This Row],[Bin_2]]=Table2[[#This Row],[Bin_3]]))","v":1}]
[null,"Thomas","Smith","Jackson",null,"Jones","Moore","Anderson",{"$f":"--NOT(OR(Table2[[#This Row],[Bin_1]]=Table2[[#This Row],[Bin_2]],Table2[[#This Row],[Bin_1]]=Table2[[#This Row],[Bin_3]],Table2[[#This Row],[Bin_2]]=Table2[[#This Row],[Bin_3]]))","v":1}]
[null,"Anderson","","Smith",null,"Jones","Moore","Williams",{"$f":"--NOT(OR(Table2[[#This Row],[Bin_1]]=Table2[[#This Row],[Bin_2]],Table2[[#This Row],[Bin_1]]=Table2[[#This Row],[Bin_3]],Table2[[#This Row],[Bin_2]]=Table2[[#This Row],[Bin_3]]))","v":1}]
[null,"Thomas","Davis","Jackson",null,"Jones","Taylor","Thomas",{"$f":"--NOT(OR(Table2[[#This Row],[Bin_1]]=Table2[[#This Row],[Bin_2]],Table2[[#This Row],[Bin_1]]=Table2[[#This Row],[Bin_3]],Table2[[#This Row],[Bin_2]]=Table2[[#This Row],[Bin_3]]))","v":1}]
[null,"","Thomas","Moore",null,"Jones","Williams","Moore",{"$f":"--NOT(OR(Table2[[#This Row],[Bin_1]]=Table2[[#This Row],[Bin_2]],Table2[[#This Row],[Bin_1]]=Table2[[#This Row],[Bin_3]],Table2[[#This Row],[Bin_2]]=Table2[[#This Row],[Bin_3]]))","v":1}]
[null,"Moore","Smith","Wilson",null,"Jones","Wilson","",{"$f":"--NOT(OR(Table2[[#This Row],[Bin_1]]=Table2[[#This Row],[Bin_2]],Table2[[#This Row],[Bin_1]]=Table2[[#This Row],[Bin_3]],Table2[[#This Row],[Bin_2]]=Table2[[#This Row],[Bin_3]]))","v":1}]
[null,"Brown","","",null,"Jones","Wilson","Anderson",{"$f":"--NOT(OR(Table2[[#This Row],[Bin_1]]=Table2[[#This Row],[Bin_2]],Table2[[#This Row],[Bin_1]]=Table2[[#This Row],[Bin_3]],Table2[[#This Row],[Bin_2]]=Table2[[#This Row],[Bin_3]]))","v":1}]
[null,"Davis","Taylor","Wilson",null,"Jones","Wilson","Davis",{"$f":"--NOT(OR(Table2[[#This Row],[Bin_1]]=Table2[[#This Row],[Bin_2]],Table2[[#This Row],[Bin_1]]=Table2[[#This Row],[Bin_3]],Table2[[#This Row],[Bin_2]]=Table2[[#This Row],[Bin_3]]))","v":1}]
[null,"Smith","Davis","Anderson",null,"Jones","Wilson","Johnson",{"$f":"--NOT(OR(Table2[[#This Row],[Bin_1]]=Table2[[#This Row],[Bin_2]],Table2[[#This Row],[Bin_1]]=Table2[[#This Row],[Bin_3]],Table2[[#This Row],[Bin_2]]=Table2[[#This Row],[Bin_3]]))","v":1}]
[null,"Williams","Johnson","Anderson",null,"Jones","Wilson","Miller",{"$f":"--NOT(OR(Table2[[#This Row],[Bin_1]]=Table2[[#This Row],[Bin_2]],Table2[[#This Row],[Bin_1]]=Table2[[#This Row],[Bin_3]],Table2[[#This Row],[Bin_2]]=Table2[[#This Row],[Bin_3]]))","v":1}]
[null,"Anderson","","Jones",null,"Jones","Wilson","Smith",{"$f":"--NOT(OR(Table2[[#This Row],[Bin_1]]=Table2[[#This Row],[Bin_2]],Table2[[#This Row],[Bin_1]]=Table2[[#This Row],[Bin_3]],Table2[[#This Row],[Bin_2]]=Table2[[#This Row],[Bin_3]]))","v":1}]
[null,"Brown","Thomas","Anderson",null,"Miller","Anderson","",{"$f":"--NOT(OR(Table2[[#This Row],[Bin_1]]=Table2[[#This Row],[Bin_2]],Table2[[#This Row],[Bin_1]]=Table2[[#This Row],[Bin_3]],Table2[[#This Row],[Bin_2]]=Table2[[#This Row],[Bin_3]]))","v":1}]
[null,"Davis","Moore","Miller",null,"Miller","Anderson","Jones",{"$f":"--NOT(OR(Table2[[#This Row],[Bin_1]]=Table2[[#This Row],[Bin_2]],Table2[[#This Row],[Bin_1]]=Table2[[#This Row],[Bin_3]],Table2[[#This Row],[Bin_2]]=Table2[[#This Row],[Bin_3]]))","v":1}]
[null,"","Johnson","Moore",null,"Miller","Anderson","Smith",{"$f":"--NOT(OR(Table2[[#This Row],[Bin_1]]=Table2[[#This Row],[Bin_2]],Table2[[#This Row],[Bin_1]]=Table2[[#This Row],[Bin_3]],Table2[[#This Row],[Bin_2]]=Table2[[#This Row],[Bin_3]]))","v":1}]
[null,"Wilson","Anderson","Wilson",null,"Miller","Anderson","Taylor",{"$f":"--NOT(OR(Table2[[#This Row],[Bin_1]]=Table2[[#This Row],[Bin_2]],Table2[[#This Row],[Bin_1]]=Table2[[#This Row],[Bin_3]],Table2[[#This Row],[Bin_2]]=Table2[[#This Row],[Bin_3]]))","v":1}]
[null,"","Jackson","Taylor",null,"Miller","Brown","Moore",{"$f":"--NOT(OR(Table2[[#This Row],[Bin_1]]=Table2[[#This Row],[Bin_2]],Table2[[#This Row],[Bin_1]]=Table2[[#This Row],[Bin_3]],Table2[[#This Row],[Bin_2]]=Table2[[#This Row],[Bin_3]]))","v":1}]
[null,"Smith","Thomas","Williams",null,"Miller","Davis","",{"$f":"--NOT(OR(Table2[[#This Row],[Bin_1]]=Table2[[#This Row],[Bin_2]],Table2[[#This Row],[Bin_1]]=Table2[[#This Row],[Bin_3]],Table2[[#This Row],[Bin_2]]=Table2[[#This Row],[Bin_3]]))","v":1}]
[null,"","Miller","",null,"Miller","Davis","Johnson",{"$f":"--NOT(OR(Table2[[#This Row],[Bin_1]]=Table2[[#This Row],[Bin_2]],Table2[[#This Row],[Bin_1]]=Table2[[#This Row],[Bin_3]],Table2[[#This Row],[Bin_2]]=Table2[[#This Row],[Bin_3]]))","v":1}]
[null,"Jones","Brown","",null,"Miller","Davis","Wilson",{"$f":"--NOT(OR(Table2[[#This Row],[Bin_1]]=Table2[[#This Row],[Bin_2]],Table2[[#This Row],[Bin_1]]=Table2[[#This Row],[Bin_3]],Table2[[#This Row],[Bin_2]]=Table2[[#This Row],[Bin_3]]))","v":1}]
[null,"Smith","Davis","Wilson",null,"Miller","Jackson","Johnson",{"$f":"--NOT(OR(Table2[[#This Row],[Bin_1]]=Table2[[#This Row],[Bin_2]],Table2[[#This Row],[Bin_1]]=Table2[[#This Row],[Bin_3]],Table2[[#This Row],[Bin_2]]=Table2[[#This Row],[Bin_3]]))","v":1}]
[null,"Taylor","Jones","Anderson",null,"Miller","Johnson","Anderson",{"$f":"--NOT(OR(Table2[[#This Row],[Bin_1]]=Table2[[#This Row],[Bin_2]],Table2[[#This Row],[Bin_1]]=Table2[[#This Row],[Bin_3]],Table2[[#This Row],[Bin_2]]=Table2[[#This Row],[Bin_3]]))","v":1}]
[null,"Jones","Wilson","Smith",null,"Miller","Johnson","Jackson",{"$f":"--NOT(OR(Table2[[#This Row],[Bin_1]]=Table2[[#This Row],[Bin_2]],Table2[[#This Row],[Bin_1]]=Table2[[#This Row],[Bin_3]],Table2[[#This Row],[Bin_2]]=Table2[[#This Row],[Bin_3]]))","v":1}]
[null,"Wilson","Moore","Davis",null,"Miller","Johnson","Taylor",{"$f":"--NOT(OR(Table2[[#This Row],[Bin_1]]=Table2[[#This Row],[Bin_2]],Table2[[#This Row],[Bin_1]]=Table2[[#This Row],[Bin_3]],Table2[[#This Row],[Bin_2]]=Table2[[#This Row],[Bin_3]]))","v":1}]
[null,"Jackson","Davis","",null,"Miller","Jones","Moore",{"$f":"--NOT(OR(Table2[[#This Row],[Bin_1]]=Table2[[#This Row],[Bin_2]],Table2[[#This Row],[Bin_1]]=Table2[[#This Row],[Bin_3]],Table2[[#This Row],[Bin_2]]=Table2[[#This Row],[Bin_3]]))","v":1}]
[null,"Anderson","Anderson","Jones",null,"Miller","Jones","Williams",{"$f":"--NOT(OR(Table2[[#This Row],[Bin_1]]=Table2[[#This Row],[Bin_2]],Table2[[#This Row],[Bin_1]]=Table2[[#This Row],[Bin_3]],Table2[[#This Row],[Bin_2]]=Table2[[#This Row],[Bin_3]]))","v":1}]
[null,"Brown","Smith","Miller",null,"Miller","Smith","",{"$f":"--NOT(OR(Table2[[#This Row],[Bin_1]]=Table2[[#This Row],[Bin_2]],Table2[[#This Row],[Bin_1]]=Table2[[#This Row],[Bin_3]],Table2[[#This Row],[Bin_2]]=Table2[[#This Row],[Bin_3]]))","v":1}]
[null,"","Jones","Moore",null,"Miller","Smith","Brown",{"$f":"--NOT(OR(Table2[[#This Row],[Bin_1]]=Table2[[#This Row],[Bin_2]],Table2[[#This Row],[Bin_1]]=Table2[[#This Row],[Bin_3]],Table2[[#This Row],[Bin_2]]=Table2[[#This Row],[Bin_3]]))","v":1}]
[null,"Smith","Anderson","Brown",null,"Miller","Taylor","Jones",{"$f":"--NOT(OR(Table2[[#This Row],[Bin_1]]=Table2[[#This Row],[Bin_2]],Table2[[#This Row],[Bin_1]]=Table2[[#This Row],[Bin_3]],Table2[[#This Row],[Bin_2]]=Table2[[#This Row],[Bin_3]]))","v":1}]
[null,"Thomas","Brown","",null,"Miller","Wilson","Moore",{"$f":"--NOT(OR(Table2[[#This Row],[Bin_1]]=Table2[[#This Row],[Bin_2]],Table2[[#This Row],[Bin_1]]=Table2[[#This Row],[Bin_3]],Table2[[#This Row],[Bin_2]]=Table2[[#This Row],[Bin_3]]))","v":1}]
[null,"Miller","Smith","",null,"Miller","Wilson","Taylor",{"$f":"--NOT(OR(Table2[[#This Row],[Bin_1]]=Table2[[#This Row],[Bin_2]],Table2[[#This Row],[Bin_1]]=Table2[[#This Row],[Bin_3]],Table2[[#This Row],[Bin_2]]=Table2[[#This Row],[Bin_3]]))","v":1}]
[null,"Wilson","Anderson","Johnson",null,"Moore","","Miller",{"$f":"--NOT(OR(Table2[[#This Row],[Bin_1]]=Table2[[#This Row],[Bin_2]],Table2[[#This Row],[Bin_1]]=Table2[[#This Row],[Bin_3]],Table2[[#This Row],[Bin_2]]=Table2[[#This Row],[Bin_3]]))","v":1}]
[null,"Davis","","Wilson",null,"Moore","Anderson","Davis",{"$f":"--NOT(OR(Table2[[#This Row],[Bin_1]]=Table2[[#This Row],[Bin_2]],Table2[[#This Row],[Bin_1]]=Table2[[#This Row],[Bin_3]],Table2[[#This Row],[Bin_2]]=Table2[[#This Row],[Bin_3]]))","v":1}]
[null,"Wilson","","Miller",null,"Moore","Anderson","Taylor",{"$f":"--NOT(OR(Table2[[#This Row],[Bin_1]]=Table2[[#This Row],[Bin_2]],Table2[[#This Row],[Bin_1]]=Table2[[#This Row],[Bin_3]],Table2[[#This Row],[Bin_2]]=Table2[[#This Row],[Bin_3]]))","v":1}]
[null,"Davis","Taylor","Thomas",null,"Moore","Anderson","Thomas",{"$f":"--NOT(OR(Table2[[#This Row],[Bin_1]]=Table2[[#This Row],[Bin_2]],Table2[[#This Row],[Bin_1]]=Table2[[#This Row],[Bin_3]],Table2[[#This Row],[Bin_2]]=Table2[[#This Row],[Bin_3]]))","v":1}]
[null,"Moore","","Miller",null,"Moore","Brown","",{"$f":"--NOT(OR(Table2[[#This Row],[Bin_1]]=Table2[[#This Row],[Bin_2]],Table2[[#This Row],[Bin_1]]=Table2[[#This Row],[Bin_3]],Table2[[#This Row],[Bin_2]]=Table2[[#This Row],[Bin_3]]))","v":1}]
[null,"Davis","Johnson","Jones",null,"Moore","Brown","Jackson",{"$f":"--NOT(OR(Table2[[#This Row],[Bin_1]]=Table2[[#This Row],[Bin_2]],Table2[[#This Row],[Bin_1]]=Table2[[#This Row],[Bin_3]],Table2[[#This Row],[Bin_2]]=Table2[[#This Row],[Bin_3]]))","v":1}]
[null,"Jackson","Wilson","Brown",null,"Moore","Brown","Wilson",{"$f":"--NOT(OR(Table2[[#This Row],[Bin_1]]=Table2[[#This Row],[Bin_2]],Table2[[#This Row],[Bin_1]]=Table2[[#This Row],[Bin_3]],Table2[[#This Row],[Bin_2]]=Table2[[#This Row],[Bin_3]]))","v":1}]
[null,"Williams","Taylor","Taylor",null,"Moore","Davis","Williams",{"$f":"--NOT(OR(Table2[[#This Row],[Bin_1]]=Table2[[#This Row],[Bin_2]],Table2[[#This Row],[Bin_1]]=Table2[[#This Row],[Bin_3]],Table2[[#This Row],[Bin_2]]=Table2[[#This Row],[Bin_3]]))","v":1}]
[null,"Johnson","Taylor","Davis",null,"Moore","Johnson","",{"$f":"--NOT(OR(Table2[[#This Row],[Bin_1]]=Table2[[#This Row],[Bin_2]],Table2[[#This Row],[Bin_1]]=Table2[[#This Row],[Bin_3]],Table2[[#This Row],[Bin_2]]=Table2[[#This Row],[Bin_3]]))","v":1}]
[null,"Williams","Smith","Brown",null,"Moore","Johnson","Anderson",{"$f":"--NOT(OR(Table2[[#This Row],[Bin_1]]=Table2[[#This Row],[Bin_2]],Table2[[#This Row],[Bin_1]]=Table2[[#This Row],[Bin_3]],Table2[[#This Row],[Bin_2]]=Table2[[#This Row],[Bin_3]]))","v":1}]
[null,"Davis","Brown","Davis",null,"Moore","Johnson","Taylor",{"$f":"--NOT(OR(Table2[[#This Row],[Bin_1]]=Table2[[#This Row],[Bin_2]],Table2[[#This Row],[Bin_1]]=Table2[[#This Row],[Bin_3]],Table2[[#This Row],[Bin_2]]=Table2[[#This Row],[Bin_3]]))","v":1}]
[null,"Brown","Williams","Brown",null,"Moore","Miller","",{"$f":"--NOT(OR(Table2[[#This Row],[Bin_1]]=Table2[[#This Row],[Bin_2]],Table2[[#This Row],[Bin_1]]=Table2[[#This Row],[Bin_3]],Table2[[#This Row],[Bin_2]]=Table2[[#This Row],[Bin_3]]))","v":1}]
[null,"Smith","Anderson","",null,"Moore","Smith","Wilson",{"$f":"--NOT(OR(Table2[[#This Row],[Bin_1]]=Table2[[#This Row],[Bin_2]],Table2[[#This Row],[Bin_1]]=Table2[[#This Row],[Bin_3]],Table2[[#This Row],[Bin_2]]=Table2[[#This Row],[Bin_3]]))","v":1}]
[null,"Brown","Davis","Johnson",null,"Moore","Taylor","Johnson",{"$f":"--NOT(OR(Table2[[#This Row],[Bin_1]]=Table2[[#This Row],[Bin_2]],Table2[[#This Row],[Bin_1]]=Table2[[#This Row],[Bin_3]],Table2[[#This Row],[Bin_2]]=Table2[[#This Row],[Bin_3]]))","v":1}]
[null,"Johnson","Jones","Miller",null,"Moore","Williams","",{"$f":"--NOT(OR(Table2[[#This Row],[Bin_1]]=Table2[[#This Row],[Bin_2]],Table2[[#This Row],[Bin_1]]=Table2[[#This Row],[Bin_3]],Table2[[#This Row],[Bin_2]]=Table2[[#This Row],[Bin_3]]))","v":1}]
[null,"Davis","Wilson","Smith",null,"Moore","Williams","Brown",{"$f":"--NOT(OR(Table2[[#This Row],[Bin_1]]=Table2[[#This Row],[Bin_2]],Table2[[#This Row],[Bin_1]]=Table2[[#This Row],[Bin_3]],Table2[[#This Row],[Bin_2]]=Table2[[#This Row],[Bin_3]]))","v":1}]
[null,"Anderson","Jones","Taylor",null,"Moore","Williams","Johnson",{"$f":"--NOT(OR(Table2[[#This Row],[Bin_1]]=Table2[[#This Row],[Bin_2]],Table2[[#This Row],[Bin_1]]=Table2[[#This Row],[Bin_3]],Table2[[#This Row],[Bin_2]]=Table2[[#This Row],[Bin_3]]))","v":1}]
[null,"Jackson","","Wilson",null,"Moore","Wilson","",{"$f":"--NOT(OR(Table2[[#This Row],[Bin_1]]=Table2[[#This Row],[Bin_2]],Table2[[#This Row],[Bin_1]]=Table2[[#This Row],[Bin_3]],Table2[[#This Row],[Bin_2]]=Table2[[#This Row],[Bin_3]]))","v":1}]
[null,"Brown","","Taylor",null,"Moore","Wilson","Thomas",{"$f":"--NOT(OR(Table2[[#This Row],[Bin_1]]=Table2[[#This Row],[Bin_2]],Table2[[#This Row],[Bin_1]]=Table2[[#This Row],[Bin_3]],Table2[[#This Row],[Bin_2]]=Table2[[#This Row],[Bin_3]]))","v":1}]
[null,"Moore","Taylor","Johnson",null,"Smith","","Taylor",{"$f":"--NOT(OR(Table2[[#This Row],[Bin_1]]=Table2[[#This Row],[Bin_2]],Table2[[#This Row],[Bin_1]]=Table2[[#This Row],[Bin_3]],Table2[[#This Row],[Bin_2]]=Table2[[#This Row],[Bin_3]]))","v":1}]
[null,"","","Smith",null,"Smith","Anderson","",{"$f":"--NOT(OR(Table2[[#This Row],[Bin_1]]=Table2[[#This Row],[Bin_2]],Table2[[#This Row],[Bin_1]]=Table2[[#This Row],[Bin_3]],Table2[[#This Row],[Bin_2]]=Table2[[#This Row],[Bin_3]]))","v":1}]
[null,"Miller","Taylor","Jones",null,"Smith","Anderson","Brown",{"$f":"--NOT(OR(Table2[[#This Row],[Bin_1]]=Table2[[#This Row],[Bin_2]],Table2[[#This Row],[Bin_1]]=Table2[[#This Row],[Bin_3]],Table2[[#This Row],[Bin_2]]=Table2[[#This Row],[Bin_3]]))","v":1}]
[null,"Taylor","Johnson","Brown",null,"Smith","Brown","Jones",{"$f":"--NOT(OR(Table2[[#This Row],[Bin_1]]=Table2[[#This Row],[Bin_2]],Table2[[#This Row],[Bin_1]]=Table2[[#This Row],[Bin_3]],Table2[[#This Row],[Bin_2]]=Table2[[#This Row],[Bin_3]]))","v":1}]
[null,"Wilson","Taylor","Brown",null,"Smith","Davis","Anderson",{"$f":"--NOT(OR(Table2[[#This Row],[Bin_1]]=Table2[[#This Row],[Bin_2]],Table2[[#This Row],[Bin_1]]=Table2[[#This Row],[Bin_3]],Table2[[#This Row],[Bin_2]]=Table2[[#This Row],[Bin_3]]))","v":1}]
[null,"Moore","Williams","Brown",null,"Smith","Davis","Wilson",{"$f":"--NOT(OR(Table2[[#This Row],[Bin_1]]=Table2[[#This Row],[Bin_2]],Table2[[#This Row],[Bin_1]]=Table2[[#This Row],[Bin_3]],Table2[[#This Row],[Bin_2]]=Table2[[#This Row],[Bin_3]]))","v":1}]
[null,"Wilson","Davis","Anderson",null,"Smith","Johnson","Wilson",{"$f":"--NOT(OR(Table2[[#This Row],[Bin_1]]=Table2[[#This Row],[Bin_2]],Table2[[#This Row],[Bin_1]]=Table2[[#This Row],[Bin_3]],Table2[[#This Row],[Bin_2]]=Table2[[#This Row],[Bin_3]]))","v":1}]
[null,"","Jackson","Smith",null,"Smith","Jones","Johnson",{"$f":"--NOT(OR(Table2[[#This Row],[Bin_1]]=Table2[[#This Row],[Bin_2]],Table2[[#This Row],[Bin_1]]=Table2[[#This Row],[Bin_3]],Table2[[#This Row],[Bin_2]]=Table2[[#This Row],[Bin_3]]))","v":1}]
[null,"Anderson","Wilson","",null,"Smith","Miller","Williams",{"$f":"--NOT(OR(Table2[[#This Row],[Bin_1]]=Table2[[#This Row],[Bin_2]],Table2[[#This Row],[Bin_1]]=Table2[[#This Row],[Bin_3]],Table2[[#This Row],[Bin_2]]=Table2[[#This Row],[Bin_3]]))","v":1}]
[null,"Jones","Johnson","Johnson",null,"Smith","Thomas","",{"$f":"--NOT(OR(Table2[[#This Row],[Bin_1]]=Table2[[#This Row],[Bin_2]],Table2[[#This Row],[Bin_1]]=Table2[[#This Row],[Bin_3]],Table2[[#This Row],[Bin_2]]=Table2[[#This Row],[Bin_3]]))","v":1}]
[null,"Thomas","Thomas","Taylor",null,"Smith","Thomas","Davis",{"$f":"--NOT(OR(Table2[[#This Row],[Bin_1]]=Table2[[#This Row],[Bin_2]],Table2[[#This Row],[Bin_1]]=Table2[[#This Row],[Bin_3]],Table2[[#This Row],[Bin_2]]=Table2[[#This Row],[Bin_3]]))","v":1}]
[null,"Wilson","Johnson","Wilson",null,"Smith","Thomas","Williams",{"$f":"--NOT(OR(Table2[[#This Row],[Bin_1]]=Table2[[#This Row],[Bin_2]],Table2[[#This Row],[Bin_1]]=Table2[[#This Row],[Bin_3]],Table2[[#This Row],[Bin_2]]=Table2[[#This Row],[Bin_3]]))","v":1}]
[null,"Thomas","Davis","Williams",null,"Smith","Williams","Thomas",{"$f":"--NOT(OR(Table2[[#This Row],[Bin_1]]=Table2[[#This Row],[Bin_2]],Table2[[#This Row],[Bin_1]]=Table2[[#This Row],[Bin_3]],Table2[[#This Row],[Bin_2]]=Table2[[#This Row],[Bin_3]]))","v":1}]
[null,"Smith","Jones","Smith",null,"Smith","Wilson","",{"$f":"--NOT(OR(Table2[[#This Row],[Bin_1]]=Table2[[#This Row],[Bin_2]],Table2[[#This Row],[Bin_1]]=Table2[[#This Row],[Bin_3]],Table2[[#This Row],[Bin_2]]=Table2[[#This Row],[Bin_3]]))","v":1}]
[null,"","Brown","Moore",null,"Smith","Wilson","Anderson",{"$f":"--NOT(OR(Table2[[#This Row],[Bin_1]]=Table2[[#This Row],[Bin_2]],Table2[[#This Row],[Bin_1]]=Table2[[#This Row],[Bin_3]],Table2[[#This Row],[Bin_2]]=Table2[[#This Row],[Bin_3]]))","v":1}]
[null,"Miller","Brown","Moore",null,"Smith","Wilson","Jackson",{"$f":"--NOT(OR(Table2[[#This Row],[Bin_1]]=Table2[[#This Row],[Bin_2]],Table2[[#This Row],[Bin_1]]=Table2[[#This Row],[Bin_3]],Table2[[#This Row],[Bin_2]]=Table2[[#This Row],[Bin_3]]))","v":1}]
[null,"Davis","Brown","",null,"Taylor","","Thomas",{"$f":"--NOT(OR(Table2[[#This Row],[Bin_1]]=Table2[[#This Row],[Bin_2]],Table2[[#This Row],[Bin_1]]=Table2[[#This Row],[Bin_3]],Table2[[#This Row],[Bin_2]]=Table2[[#This Row],[Bin_3]]))","v":1}]
[null,"Wilson","Smith","Brown",null,"Taylor","","Williams",{"$f":"--NOT(OR(Table2[[#This Row],[Bin_1]]=Table2[[#This Row],[Bin_2]],Table2[[#This Row],[Bin_1]]=Table2[[#This Row],[Bin_3]],Table2[[#This Row],[Bin_2]]=Table2[[#This Row],[Bin_3]]))","v":1}]
[null,"Smith","Thomas","Davis",null,"Taylor","Anderson","Wilson",{"$f":"--NOT(OR(Table2[[#This Row],[Bin_1]]=Table2[[#This Row],[Bin_2]],Table2[[#This Row],[Bin_1]]=Table2[[#This Row],[Bin_3]],Table2[[#This Row],[Bin_2]]=Table2[[#This Row],[Bin_3]]))","v":1}]
[null,"","","Thomas",null,"Taylor","Brown","Davis",{"$f":"--NOT(OR(Table2[[#This Row],[Bin_1]]=Table2[[#This Row],[Bin_2]],Table2[[#This Row],[Bin_1]]=Table2[[#This Row],[Bin_3]],Table2[[#This Row],[Bin_2]]=Table2[[#This Row],[Bin_3]]))","v":1}]
[null,"Taylor","Brown","Davis",null,"Taylor","Davis","Brown",{"$f":"--NOT(OR(Table2[[#This Row],[Bin_1]]=Table2[[#This Row],[Bin_2]],Table2[[#This Row],[Bin_1]]=Table2[[#This Row],[Bin_3]],Table2[[#This Row],[Bin_2]]=Table2[[#This Row],[Bin_3]]))","v":1}]
[null,"Jackson","Jackson","Taylor",null,"Taylor","Jackson","",{"$f":"--NOT(OR(Table2[[#This Row],[Bin_1]]=Table2[[#This Row],[Bin_2]],Table2[[#This Row],[Bin_1]]=Table2[[#This Row],[Bin_3]],Table2[[#This Row],[Bin_2]]=Table2[[#This Row],[Bin_3]]))","v":1}]
[null,"Smith","Williams","Williams",null,"Taylor","Johnson","Brown",{"$f":"--NOT(OR(Table2[[#This Row],[Bin_1]]=Table2[[#This Row],[Bin_2]],Table2[[#This Row],[Bin_1]]=Table2[[#This Row],[Bin_3]],Table2[[#This Row],[Bin_2]]=Table2[[#This Row],[Bin_3]]))","v":1}]
[null,"Wilson","Thomas","Anderson",null,"Taylor","Johnson","Moore",{"$f":"--NOT(OR(Table2[[#This Row],[Bin_1]]=Table2[[#This Row],[Bin_2]],Table2[[#This Row],[Bin_1]]=Table2[[#This Row],[Bin_3]],Table2[[#This Row],[Bin_2]]=Table2[[#This Row],[Bin_3]]))","v":1}]
[null,"Thomas","Davis","Wilson",null,"Taylor","Jones","Anderson",{"$f":"--NOT(OR(Table2[[#This Row],[Bin_1]]=Table2[[#This Row],[Bin_2]],Table2[[#This Row],[Bin_1]]=Table2[[#This Row],[Bin_3]],Table2[[#This Row],[Bin_2]]=Table2[[#This Row],[Bin_3]]))","v":1}]
[null,"Davis","Davis","",null,"Taylor","Jones","Jackson",{"$f":"--NOT(OR(Table2[[#This Row],[Bin_1]]=Table2[[#This Row],[Bin_2]],Table2[[#This Row],[Bin_1]]=Table2[[#This Row],[Bin_3]],Table2[[#This Row],[Bin_2]]=Table2[[#This Row],[Bin_3]]))","v":1}]
[null,"Williams","Anderson","Smith",null,"Taylor","Jones","Johnson",{"$f":"--NOT(OR(Table2[[#This Row],[Bin_1]]=Table2[[#This Row],[Bin_2]],Table2[[#This Row],[Bin_1]]=Table2[[#This Row],[Bin_3]],Table2[[#This Row],[Bin_2]]=Table2[[#This Row],[Bin_3]]))","v":1}]
[null,"Johnson","Wilson","Jones",null,"Taylor","Jones","Moore",{"$f":"--NOT(OR(Table2[[#This Row],[Bin_1]]=Table2[[#This Row],[Bin_2]],Table2[[#This Row],[Bin_1]]=Table2[[#This Row],[Bin_3]],Table2[[#This Row],[Bin_2]]=Table2[[#This Row],[Bin_3]]))","v":1}]
[null,"Jones","Wilson","Davis",null,"Taylor","Jones","Smith",{"$f":"--NOT(OR(Table2[[#This Row],[Bin_1]]=Table2[[#This Row],[Bin_2]],Table2[[#This Row],[Bin_1]]=Table2[[#This Row],[Bin_3]],Table2[[#This Row],[Bin_2]]=Table2[[#This Row],[Bin_3]]))","v":1}]
[null,"Johnson","","",null,"Taylor","Miller","Anderson",{"$f":"--NOT(OR(Table2[[#This Row],[Bin_1]]=Table2[[#This Row],[Bin_2]],Table2[[#This Row],[Bin_1]]=Table2[[#This Row],[Bin_3]],Table2[[#This Row],[Bin_2]]=Table2[[#This Row],[Bin_3]]))","v":1}]
[null,"","Jackson","Jones",null,"Taylor","Miller","Johnson",{"$f":"--NOT(OR(Table2[[#This Row],[Bin_1]]=Table2[[#This Row],[Bin_2]],Table2[[#This Row],[Bin_1]]=Table2[[#This Row],[Bin_3]],Table2[[#This Row],[Bin_2]]=Table2[[#This Row],[Bin_3]]))","v":1}]
[null,"Taylor","Jones","Moore",null,"Taylor","Moore","Anderson",{"$f":"--NOT(OR(Table2[[#This Row],[Bin_1]]=Table2[[#This Row],[Bin_2]],Table2[[#This Row],[Bin_1]]=Table2[[#This Row],[Bin_3]],Table2[[#This Row],[Bin_2]]=Table2[[#This Row],[Bin_3]]))","v":1}]
[null,"Brown","Smith","Johnson",null,"Taylor","Moore","Jackson",{"$f":"--NOT(OR(Table2[[#This Row],[Bin_1]]=Table2[[#This Row],[Bin_2]],Table2[[#This Row],[Bin_1]]=Table2[[#This Row],[Bin_3]],Table2[[#This Row],[Bin_2]]=Table2[[#This Row],[Bin_3]]))","v":1}]
[null,"","Taylor","Anderson",null,"Taylor","Moore","Miller",{"$f":"--NOT(OR(Table2[[#This Row],[Bin_1]]=Table2[[#This Row],[Bin_2]],Table2[[#This Row],[Bin_1]]=Table2[[#This Row],[Bin_3]],Table2[[#This Row],[Bin_2]]=Table2[[#This Row],[Bin_3]]))","v":1}]
[null,"Johnson","Jones","Jones",null,"Taylor","Smith","Miller",{"$f":"--NOT(OR(Table2[[#This Row],[Bin_1]]=Table2[[#This Row],[Bin_2]],Table2[[#This Row],[Bin_1]]=Table2[[#This Row],[Bin_3]],Table2[[#This Row],[Bin_2]]=Table2[[#This Row],[Bin_3]]))","v":1}]
[null,"Davis","Jones","Smith",null,"Taylor","Thomas","Brown",{"$f":"--NOT(OR(Table2[[#This Row],[Bin_1]]=Table2[[#This Row],[Bin_2]],Table2[[#This Row],[Bin_1]]=Table2[[#This Row],[Bin_3]],Table2[[#This Row],[Bin_2]]=Table2[[#This Row],[Bin_3]]))","v":1}]
[null,"Taylor","Smith","Miller",null,"Taylor","Williams","Thomas",{"$f":"--NOT(OR(Table2[[#This Row],[Bin_1]]=Table2[[#This Row],[Bin_2]],Table2[[#This Row],[Bin_1]]=Table2[[#This Row],[Bin_3]],Table2[[#This Row],[Bin_2]]=Table2[[#This Row],[Bin_3]]))","v":1}]
[null,"Thomas","","Williams",null,"Taylor","Wilson","Johnson",{"$f":"--NOT(OR(Table2[[#This Row],[Bin_1]]=Table2[[#This Row],[Bin_2]],Table2[[#This Row],[Bin_1]]=Table2[[#This Row],[Bin_3]],Table2[[#This Row],[Bin_2]]=Table2[[#This Row],[Bin_3]]))","v":1}]
[null,"Smith","Thomas","Williams",null,"Thomas","","Brown",{"$f":"--NOT(OR(Table2[[#This Row],[Bin_1]]=Table2[[#This Row],[Bin_2]],Table2[[#This Row],[Bin_1]]=Table2[[#This Row],[Bin_3]],Table2[[#This Row],[Bin_2]]=Table2[[#This Row],[Bin_3]]))","v":1}]
[null,"Williams","","Miller",null,"Thomas","","Davis",{"$f":"--NOT(OR(Table2[[#This Row],[Bin_1]]=Table2[[#This Row],[Bin_2]],Table2[[#This Row],[Bin_1]]=Table2[[#This Row],[Bin_3]],Table2[[#This Row],[Bin_2]]=Table2[[#This Row],[Bin_3]]))","v":1}]
[null,"Williams","Smith","Davis",null,"Thomas","","Jackson",{"$f":"--NOT(OR(Table2[[#This Row],[Bin_1]]=Table2[[#This Row],[Bin_2]],Table2[[#This Row],[Bin_1]]=Table2[[#This Row],[Bin_3]],Table2[[#This Row],[Bin_2]]=Table2[[#This Row],[Bin_3]]))","v":1}]
[null,"Taylor","Davis","Brown",null,"Thomas","","Miller",{"$f":"--NOT(OR(Table2[[#This Row],[Bin_1]]=Table2[[#This Row],[Bin_2]],Table2[[#This Row],[Bin_1]]=Table2[[#This Row],[Bin_3]],Table2[[#This Row],[Bin_2]]=Table2[[#This Row],[Bin_3]]))","v":1}]
[null,"Wilson","Williams","Jackson",null,"Thomas","","Moore",{"$f":"--NOT(OR(Table2[[#This Row],[Bin_1]]=Table2[[#This Row],[Bin_2]],Table2[[#This Row],[Bin_1]]=Table2[[#This Row],[Bin_3]],Table2[[#This Row],[Bin_2]]=Table2[[#This Row],[Bin_3]]))","v":1}]
[null,"Williams","Wilson","",null,"Thomas","","Williams",{"$f":"--NOT(OR(Table2[[#This Row],[Bin_1]]=Table2[[#This Row],[Bin_2]],Table2[[#This Row],[Bin_1]]=Table2[[#This Row],[Bin_3]],Table2[[#This Row],[Bin_2]]=Table2[[#This Row],[Bin_3]]))","v":1}]
[null,"Jackson","Davis","Miller",null,"Thomas","Anderson","Miller",{"$f":"--NOT(OR(Table2[[#This Row],[Bin_1]]=Table2[[#This Row],[Bin_2]],Table2[[#This Row],[Bin_1]]=Table2[[#This Row],[Bin_3]],Table2[[#This Row],[Bin_2]]=Table2[[#This Row],[Bin_3]]))","v":1}]
[null,"Williams","","Smith",null,"Thomas","Anderson","Smith",{"$f":"--NOT(OR(Table2[[#This Row],[Bin_1]]=Table2[[#This Row],[Bin_2]],Table2[[#This Row],[Bin_1]]=Table2[[#This Row],[Bin_3]],Table2[[#This Row],[Bin_2]]=Table2[[#This Row],[Bin_3]]))","v":1}]
[null,"Williams","Johnson","Taylor",null,"Thomas","Brown","",{"$f":"--NOT(OR(Table2[[#This Row],[Bin_1]]=Table2[[#This Row],[Bin_2]],Table2[[#This Row],[Bin_1]]=Table2[[#This Row],[Bin_3]],Table2[[#This Row],[Bin_2]]=Table2[[#This Row],[Bin_3]]))","v":1}]
[null,"Johnson","Williams","",null,"Thomas","Davis","",{"$f":"--NOT(OR(Table2[[#This Row],[Bin_1]]=Table2[[#This Row],[Bin_2]],Table2[[#This Row],[Bin_1]]=Table2[[#This Row],[Bin_3]],Table2[[#This Row],[Bin_2]]=Table2[[#This Row],[Bin_3]]))","v":1}]
[null,"","Smith","Davis",null,"Thomas","Davis","Jackson",{"$f":"--NOT(OR(Table2[[#This Row],[Bin_1]]=Table2[[#This Row],[Bin_2]],Table2[[#This Row],[Bin_1]]=Table2[[#This Row],[Bin_3]],Table2[[#This Row],[Bin_2]]=Table2[[#This Row],[Bin_3]]))","v":1}]
[null,"Wilson","Thomas","Jackson",null,"Thomas","Davis","Miller",{"$f":"--NOT(OR(Table2[[#This Row],[Bin_1]]=Table2[[#This Row],[Bin_2]],Table2[[#This Row],[Bin_1]]=Table2[[#This Row],[Bin_3]],Table2[[#This Row],[Bin_2]]=Table2[[#This Row],[Bin_3]]))","v":1}]
[null,"Williams","Johnson","Johnson",null,"Thomas","Davis","Williams",{"$f":"--NOT(OR(Table2[[#This Row],[Bin_1]]=Table2[[#This Row],[Bin_2]],Table2[[#This Row],[Bin_1]]=Table2[[#This Row],[Bin_3]],Table2[[#This Row],[Bin_2]]=Table2[[#This Row],[Bin_3]]))","v":1}]
[null,"Anderson","","",null,"Thomas","Davis","Wilson",{"$f":"--NOT(OR(Table2[[#This Row],[Bin_1]]=Table2[[#This Row],[Bin_2]],Table2[[#This Row],[Bin_1]]=Table2[[#This Row],[Bin_3]],Table2[[#This Row],[Bin_2]]=Table2[[#This Row],[Bin_3]]))","v":1}]
[null,"Moore","Wilson","Thomas",null,"Thomas","Johnson","",{"$f":"--NOT(OR(Table2[[#This Row],[Bin_1]]=Table2[[#This Row],[Bin_2]],Table2[[#This Row],[Bin_1]]=Table2[[#This Row],[Bin_3]],Table2[[#This Row],[Bin_2]]=Table2[[#This Row],[Bin_3]]))","v":1}]
[null,"Moore","Johnson","Anderson",null,"Thomas","Jones","Johnson",{"$f":"--NOT(OR(Table2[[#This Row],[Bin_1]]=Table2[[#This Row],[Bin_2]],Table2[[#This Row],[Bin_1]]=Table2[[#This Row],[Bin_3]],Table2[[#This Row],[Bin_2]]=Table2[[#This Row],[Bin_3]]))","v":1}]
[null,"Moore","Anderson","Thomas",null,"Thomas","Miller","Anderson",{"$f":"--NOT(OR(Table2[[#This Row],[Bin_1]]=Table2[[#This Row],[Bin_2]],Table2[[#This Row],[Bin_1]]=Table2[[#This Row],[Bin_3]],Table2[[#This Row],[Bin_2]]=Table2[[#This Row],[Bin_3]]))","v":1}]
[null,"Thomas","","Miller",null,"Thomas","Miller","Jackson",{"$f":"--NOT(OR(Table2[[#This Row],[Bin_1]]=Table2[[#This Row],[Bin_2]],Table2[[#This Row],[Bin_1]]=Table2[[#This Row],[Bin_3]],Table2[[#This Row],[Bin_2]]=Table2[[#This Row],[Bin_3]]))","v":1}]
[null,"Taylor","Thomas","Taylor",null,"Thomas","Moore","Brown",{"$f":"--NOT(OR(Table2[[#This Row],[Bin_1]]=Table2[[#This Row],[Bin_2]],Table2[[#This Row],[Bin_1]]=Table2[[#This Row],[Bin_3]],Table2[[#This Row],[Bin_2]]=Table2[[#This Row],[Bin_3]]))","v":1}]
[null,"Davis","Anderson","Thomas",null,"Thomas","Moore","Davis",{"$f":"--NOT(OR(Table2[[#This Row],[Bin_1]]=Table2[[#This Row],[Bin_2]],Table2[[#This Row],[Bin_1]]=Table2[[#This Row],[Bin_3]],Table2[[#This Row],[Bin_2]]=Table2[[#This Row],[Bin_3]]))","v":1}]
[null,"Thomas","Williams","Wilson",null,"Thomas","Smith","Jackson",{"$f":"--NOT(OR(Table2[[#This Row],[Bin_1]]=Table2[[#This Row],[Bin_2]],Table2[[#This Row],[Bin_1]]=Table2[[#This Row],[Bin_3]],Table2[[#This Row],[Bin_2]]=Table2[[#This Row],[Bin_3]]))","v":1}]
[null,"Anderson","Johnson","",null,"Thomas","Taylor","Johnson",{"$f":"--NOT(OR(Table2[[#This Row],[Bin_1]]=Table2[[#This Row],[Bin_2]],Table2[[#This Row],[Bin_1]]=Table2[[#This Row],[Bin_3]],Table2[[#This Row],[Bin_2]]=Table2[[#This Row],[Bin_3]]))","v":1}]
[null,"Anderson","Moore","Taylor",null,"Thomas","Taylor","Williams",{"$f":"--NOT(OR(Table2[[#This Row],[Bin_1]]=Table2[[#This Row],[Bin_2]],Table2[[#This Row],[Bin_1]]=Table2[[#This Row],[Bin_3]],Table2[[#This Row],[Bin_2]]=Table2[[#This Row],[Bin_3]]))","v":1}]
[null,"Moore","Davis","Williams",null,"Thomas","Williams","",{"$f":"--NOT(OR(Table2[[#This Row],[Bin_1]]=Table2[[#This Row],[Bin_2]],Table2[[#This Row],[Bin_1]]=Table2[[#This Row],[Bin_3]],Table2[[#This Row],[Bin_2]]=Table2[[#This Row],[Bin_3]]))","v":1}]
[null,"","Brown","Davis",null,"Thomas","Williams","Wilson",{"$f":"--NOT(OR(Table2[[#This Row],[Bin_1]]=Table2[[#This Row],[Bin_2]],Table2[[#This Row],[Bin_1]]=Table2[[#This Row],[Bin_3]],Table2[[#This Row],[Bin_2]]=Table2[[#This Row],[Bin_3]]))","v":1}]
[null,"Thomas","Moore","Brown",null,"Thomas","Wilson","Jackson",{"$f":"--NOT(OR(Table2[[#This Row],[Bin_1]]=Table2[[#This Row],[Bin_2]],Table2[[#This Row],[Bin_1]]=Table2[[#This Row],[Bin_3]],Table2[[#This Row],[Bin_2]]=Table2[[#This Row],[Bin_3]]))","v":1}]
[null,"","Brown","",null,"Williams","","Miller",{"$f":"--NOT(OR(Table2[[#This Row],[Bin_1]]=Table2[[#This Row],[Bin_2]],Table2[[#This Row],[Bin_1]]=Table2[[#This Row],[Bin_3]],Table2[[#This Row],[Bin_2]]=Table2[[#This Row],[Bin_3]]))","v":1}]
[null,"Brown","Williams","Wilson",null,"Williams","","Smith",{"$f":"--NOT(OR(Table2[[#This Row],[Bin_1]]=Table2[[#This Row],[Bin_2]],Table2[[#This Row],[Bin_1]]=Table2[[#This Row],[Bin_3]],Table2[[#This Row],[Bin_2]]=Table2[[#This Row],[Bin_3]]))","v":1}]
[null,"","Smith","Davis",null,"Williams","Anderson","Brown",{"$f":"--NOT(OR(Table2[[#This Row],[Bin_1]]=Table2[[#This Row],[Bin_2]],Table2[[#This Row],[Bin_1]]=Table2[[#This Row],[Bin_3]],Table2[[#This Row],[Bin_2]]=Table2[[#This Row],[Bin_3]]))","v":1}]
[null,"Jackson","Smith","Taylor",null,"Williams","Anderson","Miller",{"$f":"--NOT(OR(Table2[[#This Row],[Bin_1]]=Table2[[#This Row],[Bin_2]],Table2[[#This Row],[Bin_1]]=Table2[[#This Row],[Bin_3]],Table2[[#This Row],[Bin_2]]=Table2[[#This Row],[Bin_3]]))","v":1}]
[null,"Williams","Jackson","Brown",null,"Williams","Anderson","Smith",{"$f":"--NOT(OR(Table2[[#This Row],[Bin_1]]=Table2[[#This Row],[Bin_2]],Table2[[#This Row],[Bin_1]]=Table2[[#This Row],[Bin_3]],Table2[[#This Row],[Bin_2]]=Table2[[#This Row],[Bin_3]]))","v":1}]
[null,"Johnson","Johnson","",null,"Williams","Anderson","Thomas",{"$f":"--NOT(OR(Table2[[#This Row],[Bin_1]]=Table2[[#This Row],[Bin_2]],Table2[[#This Row],[Bin_1]]=Table2[[#This Row],[Bin_3]],Table2[[#This Row],[Bin_2]]=Table2[[#This Row],[Bin_3]]))","v":1}]
[null,"Jones","Moore","Anderson",null,"Williams","Jackson","Anderson",{"$f":"--NOT(OR(Table2[[#This Row],[Bin_1]]=Table2[[#This Row],[Bin_2]],Table2[[#This Row],[Bin_1]]=Table2[[#This Row],[Bin_3]],Table2[[#This Row],[Bin_2]]=Table2[[#This Row],[Bin_3]]))","v":1}]
[null,"Wilson","Taylor","Taylor",null,"Williams","Jackson","Brown",{"$f":"--NOT(OR(Table2[[#This Row],[Bin_1]]=Table2[[#This Row],[Bin_2]],Table2[[#This Row],[Bin_1]]=Table2[[#This Row],[Bin_3]],Table2[[#This Row],[Bin_2]]=Table2[[#This Row],[Bin_3]]))","v":1}]
[null,"Anderson","Taylor","Jackson",null,"Williams","Johnson","Anderson",{"$f":"--NOT(OR(Table2[[#This Row],[Bin_1]]=Table2[[#This Row],[Bin_2]],Table2[[#This Row],[Bin_1]]=Table2[[#This Row],[Bin_3]],Table2[[#This Row],[Bin_2]]=Table2[[#This Row],[Bin_3]]))","v":1}]
[null,"Taylor","Williams","Thomas",null,"Williams","Johnson","Jones",{"$f":"--NOT(OR(Table2[[#This Row],[Bin_1]]=Table2[[#This Row],[Bin_2]],Table2[[#This Row],[Bin_1]]=Table2[[#This Row],[Bin_3]],Table2[[#This Row],[Bin_2]]=Table2[[#This Row],[Bin_3]]))","v":1}]
[null,"","Williams","",null,"Williams","Johnson","Moore",{"$f":"--NOT(OR(Table2[[#This Row],[Bin_1]]=Table2[[#This Row],[Bin_2]],Table2[[#This Row],[Bin_1]]=Table2[[#This Row],[Bin_3]],Table2[[#This Row],[Bin_2]]=Table2[[#This Row],[Bin_3]]))","v":1}]
[null,"Anderson","Thomas","Wilson",null,"Williams","Johnson","Taylor",{"$f":"--NOT(OR(Table2[[#This Row],[Bin_1]]=Table2[[#This Row],[Bin_2]],Table2[[#This Row],[Bin_1]]=Table2[[#This Row],[Bin_3]],Table2[[#This Row],[Bin_2]]=Table2[[#This Row],[Bin_3]]))","v":1}]
[null,"Jackson","Davis","",null,"Williams","Miller","Davis",{"$f":"--NOT(OR(Table2[[#This Row],[Bin_1]]=Table2[[#This Row],[Bin_2]],Table2[[#This Row],[Bin_1]]=Table2[[#This Row],[Bin_3]],Table2[[#This Row],[Bin_2]]=Table2[[#This Row],[Bin_3]]))","v":1}]
[null,"Wilson","Miller","Jones",null,"Williams","Miller","Smith",{"$f":"--NOT(OR(Table2[[#This Row],[Bin_1]]=Table2[[#This Row],[Bin_2]],Table2[[#This Row],[Bin_1]]=Table2[[#This Row],[Bin_3]],Table2[[#This Row],[Bin_2]]=Table2[[#This Row],[Bin_3]]))","v":1}]
[null,"Williams","Anderson","Thomas",null,"Williams","Moore","",{"$f":"--NOT(OR(Table2[[#This Row],[Bin_1]]=Table2[[#This Row],[Bin_2]],Table2[[#This Row],[Bin_1]]=Table2[[#This Row],[Bin_3]],Table2[[#This Row],[Bin_2]]=Table2[[#This Row],[Bin_3]]))","v":1}]
[null,"","Wilson","Brown",null,"Williams","Moore","Jackson",{"$f":"--NOT(OR(Table2[[#This Row],[Bin_1]]=Table2[[#This Row],[Bin_2]],Table2[[#This Row],[Bin_1]]=Table2[[#This Row],[Bin_3]],Table2[[#This Row],[Bin_2]]=Table2[[#This Row],[Bin_3]]))","v":1}]
[null,"Anderson","Taylor","Jones",null,"Williams","Smith","Brown",{"$f":"--NOT(OR(Table2[[#This Row],[Bin_1]]=Table2[[#This Row],[Bin_2]],Table2[[#This Row],[Bin_1]]=Table2[[#This Row],[Bin_3]],Table2[[#This Row],[Bin_2]]=Table2[[#This Row],[Bin_3]]))","v":1}]
[null,"Williams","Johnson","Jones",null,"Williams","Smith","Davis",{"$f":"--NOT(OR(Table2[[#This Row],[Bin_1]]=Table2[[#This Row],[Bin_2]],Table2[[#This Row],[Bin_1]]=Table2[[#This Row],[Bin_3]],Table2[[#This Row],[Bin_2]]=Table2[[#This Row],[Bin_3]]))","v":1}]
[null,"Anderson","Smith","",null,"Williams","Taylor","Jackson",{"$f":"--NOT(OR(Table2[[#This Row],[Bin_1]]=Table2[[#This Row],[Bin_2]],Table2[[#This Row],[Bin_1]]=Table2[[#This Row],[Bin_3]],Table2[[#This Row],[Bin_2]]=Table2[[#This Row],[Bin_3]]))","v":1}]
[null,"Jackson","Smith","Anderson",null,"Williams","Taylor","Miller",{"$f":"--NOT(OR(Table2[[#This Row],[Bin_1]]=Table2[[#This Row],[Bin_2]],Table2[[#This Row],[Bin_1]]=Table2[[#This Row],[Bin_3]],Table2[[#This Row],[Bin_2]]=Table2[[#This Row],[Bin_3]]))","v":1}]
[null,"Jackson","Moore","Miller",null,"Williams","Thomas","Smith",{"$f":"--NOT(OR(Table2[[#This Row],[Bin_1]]=Table2[[#This Row],[Bin_2]],Table2[[#This Row],[Bin_1]]=Table2[[#This Row],[Bin_3]],Table2[[#This Row],[Bin_2]]=Table2[[#This Row],[Bin_3]]))","v":1}]
[null,"Johnson","Williams","",null,"Williams","Wilson","",{"$f":"--NOT(OR(Table2[[#This Row],[Bin_1]]=Table2[[#This Row],[Bin_2]],Table2[[#This Row],[Bin_1]]=Table2[[#This Row],[Bin_3]],Table2[[#This Row],[Bin_2]]=Table2[[#This Row],[Bin_3]]))","v":1}]
[null,"Jones","Miller","Moore",null,"Williams","Wilson","Jones",{"$f":"--NOT(OR(Table2[[#This Row],[Bin_1]]=Table2[[#This Row],[Bin_2]],Table2[[#This Row],[Bin_1]]=Table2[[#This Row],[Bin_3]],Table2[[#This Row],[Bin_2]]=Table2[[#This Row],[Bin_3]]))","v":1}]
[null,"","Taylor","Johnson",null,"Wilson","","Miller",{"$f":"--NOT(OR(Table2[[#This Row],[Bin_1]]=Table2[[#This Row],[Bin_2]],Table2[[#This Row],[Bin_1]]=Table2[[#This Row],[Bin_3]],Table2[[#This Row],[Bin_2]]=Table2[[#This Row],[Bin_3]]))","v":1}]
[null,"Davis","Moore","Jones",null,"Wilson","Anderson","Johnson",{"$f":"--NOT(OR(Table2[[#This Row],[Bin_1]]=Table2[[#This Row],[Bin_2]],Table2[[#This Row],[Bin_1]]=Table2[[#This Row],[Bin_3]],Table2[[#This Row],[Bin_2]]=Table2[[#This Row],[Bin_3]]))","v":1}]
[null,"Wilson","Wilson","Smith",null,"Wilson","Brown","Johnson",{"$f":"--NOT(OR(Table2[[#This Row],[Bin_1]]=Table2[[#This Row],[Bin_2]],Table2[[#This Row],[Bin_1]]=Table2[[#This Row],[Bin_3]],Table2[[#This Row],[Bin_2]]=Table2[[#This Row],[Bin_3]]))","v":1}]
[null,"Miller","Anderson","Smith",null,"Wilson","Brown","Moore",{"$f":"--NOT(OR(Table2[[#This Row],[Bin_1]]=Table2[[#This Row],[Bin_2]],Table2[[#This Row],[Bin_1]]=Table2[[#This Row],[Bin_3]],Table2[[#This Row],[Bin_2]]=Table2[[#This Row],[Bin_3]]))","v":1}]
[null,"Smith","Jones","Johnson",null,"Wilson","Davis","Anderson",{"$f":"--NOT(OR(Table2[[#This Row],[Bin_1]]=Table2[[#This Row],[Bin_2]],Table2[[#This Row],[Bin_1]]=Table2[[#This Row],[Bin_3]],Table2[[#This Row],[Bin_2]]=Table2[[#This Row],[Bin_3]]))","v":1}]
[null,"Taylor","","",null,"Wilson","Jackson","",{"$f":"--NOT(OR(Table2[[#This Row],[Bin_1]]=Table2[[#This Row],[Bin_2]],Table2[[#This Row],[Bin_1]]=Table2[[#This Row],[Bin_3]],Table2[[#This Row],[Bin_2]]=Table2[[#This Row],[Bin_3]]))","v":1}]
[null,"Wilson","Jackson","Moore",null,"Wilson","Jackson","Moore",{"$f":"--NOT(OR(Table2[[#This Row],[Bin_1]]=Table2[[#This Row],[Bin_2]],Table2[[#This Row],[Bin_1]]=Table2[[#This Row],[Bin_3]],Table2[[#This Row],[Bin_2]]=Table2[[#This Row],[Bin_3]]))","v":1}]
[null,"","Jones","Wilson",null,"Wilson","Johnson","Moore",{"$f":"--NOT(OR(Table2[[#This Row],[Bin_1]]=Table2[[#This Row],[Bin_2]],Table2[[#This Row],[Bin_1]]=Table2[[#This Row],[Bin_3]],Table2[[#This Row],[Bin_2]]=Table2[[#This Row],[Bin_3]]))","v":1}]
[null,"Anderson","Wilson","Williams",null,"Wilson","Johnson","Smith",{"$f":"--NOT(OR(Table2[[#This Row],[Bin_1]]=Table2[[#This Row],[Bin_2]],Table2[[#This Row],[Bin_1]]=Table2[[#This Row],[Bin_3]],Table2[[#This Row],[Bin_2]]=Table2[[#This Row],[Bin_3]]))","v":1}]
[null,"Moore","Johnson","",null,"Wilson","Johnson","Taylor",{"$f":"--NOT(OR(Table2[[#This Row],[Bin_1]]=Table2[[#This Row],[Bin_2]],Table2[[#This Row],[Bin_1]]=Table2[[#This Row],[Bin_3]],Table2[[#This Row],[Bin_2]]=Table2[[#This Row],[Bin_3]]))","v":1}]
[null,"Johnson","Jones","",null,"Wilson","Jones","Miller",{"$f":"--NOT(OR(Table2[[#This Row],[Bin_1]]=Table2[[#This Row],[Bin_2]],Table2[[#This Row],[Bin_1]]=Table2[[#This Row],[Bin_3]],Table2[[#This Row],[Bin_2]]=Table2[[#This Row],[Bin_3]]))","v":1}]
[null,"Thomas","Anderson","Miller",null,"Wilson","Miller","Jones",{"$f":"--NOT(OR(Table2[[#This Row],[Bin_1]]=Table2[[#This Row],[Bin_2]],Table2[[#This Row],[Bin_1]]=Table2[[#This Row],[Bin_3]],Table2[[#This Row],[Bin_2]]=Table2[[#This Row],[Bin_3]]))","v":1}]
[null,"Jackson","Moore","Davis",null,"Wilson","Miller","Thomas",{"$f":"--NOT(OR(Table2[[#This Row],[Bin_1]]=Table2[[#This Row],[Bin_2]],Table2[[#This Row],[Bin_1]]=Table2[[#This Row],[Bin_3]],Table2[[#This Row],[Bin_2]]=Table2[[#This Row],[Bin_3]]))","v":1}]
[null,"Williams","Miller","Smith",null,"Wilson","Moore","",{"$f":"--NOT(OR(Table2[[#This Row],[Bin_1]]=Table2[[#This Row],[Bin_2]],Table2[[#This Row],[Bin_1]]=Table2[[#This Row],[Bin_3]],Table2[[#This Row],[Bin_2]]=Table2[[#This Row],[Bin_3]]))","v":1}]
[null,"Williams","Brown","Williams",null,"Wilson","Moore","Davis",{"$f":"--NOT(OR(Table2[[#This Row],[Bin_1]]=Table2[[#This Row],[Bin_2]],Table2[[#This Row],[Bin_1]]=Table2[[#This Row],[Bin_3]],Table2[[#This Row],[Bin_2]]=Table2[[#This Row],[Bin_3]]))","v":1}]
[null,"Davis","Wilson","Johnson",null,"Wilson","Smith","Anderson",{"$f":"--NOT(OR(Table2[[#This Row],[Bin_1]]=Table2[[#This Row],[Bin_2]],Table2[[#This Row],[Bin_1]]=Table2[[#This Row],[Bin_3]],Table2[[#This Row],[Bin_2]]=Table2[[#This Row],[Bin_3]]))","v":1}]
[null,"Smith","","Taylor",null,"Wilson","Smith","Brown",{"$f":"--NOT(OR(Table2[[#This Row],[Bin_1]]=Table2[[#This Row],[Bin_2]],Table2[[#This Row],[Bin_1]]=Table2[[#This Row],[Bin_3]],Table2[[#This Row],[Bin_2]]=Table2[[#This Row],[Bin_3]]))","v":1}]
[null,"Jackson","Brown","Wilson",null,"Wilson","Taylor","Anderson",{"$f":"--NOT(OR(Table2[[#This Row],[Bin_1]]=Table2[[#This Row],[Bin_2]],Table2[[#This Row],[Bin_1]]=Table2[[#This Row],[Bin_3]],Table2[[#This Row],[Bin_2]]=Table2[[#This Row],[Bin_3]]))","v":1}]
[null,"Moore","Wilson","",null,"Wilson","Taylor","Brown",{"$f":"--NOT(OR(Table2[[#This Row],[Bin_1]]=Table2[[#This Row],[Bin_2]],Table2[[#This Row],[Bin_1]]=Table2[[#This Row],[Bin_3]],Table2[[#This Row],[Bin_2]]=Table2[[#This Row],[Bin_3]]))","v":1}]
[null,"Miller","Anderson","Smith",null,"Wilson","Taylor","Jackson",{"$f":"--NOT(OR(Table2[[#This Row],[Bin_1]]=Table2[[#This Row],[Bin_2]],Table2[[#This Row],[Bin_1]]=Table2[[#This Row],[Bin_3]],Table2[[#This Row],[Bin_2]]=Table2[[#This Row],[Bin_3]]))","v":1}]
[null,"Johnson","Wilson","Jones",null,"Wilson","Thomas","Anderson",{"$f":"--NOT(OR(Table2[[#This Row],[Bin_1]]=Table2[[#This Row],[Bin_2]],Table2[[#This Row],[Bin_1]]=Table2[[#This Row],[Bin_3]],Table2[[#This Row],[Bin_2]]=Table2[[#This Row],[Bin_3]]))","v":1}]
[null,"Wilson","Taylor","Jackson",null,"Wilson","Thomas","Jackson",{"$f":"--NOT(OR(Table2[[#This Row],[Bin_1]]=Table2[[#This Row],[Bin_2]],Table2[[#This Row],[Bin_1]]=Table2[[#This Row],[Bin_3]],Table2[[#This Row],[Bin_2]]=Table2[[#This Row],[Bin_3]]))","v":1}]
[null,"Moore","Brown","",null,"Wilson","Thomas","Miller",{"$f":"--NOT(OR(Table2[[#This Row],[Bin_1]]=Table2[[#This Row],[Bin_2]],Table2[[#This Row],[Bin_1]]=Table2[[#This Row],[Bin_3]],Table2[[#This Row],[Bin_2]]=Table2[[#This Row],[Bin_3]]))","v":1}]
[null,"Wilson","Wilson","Thomas",null,"Wilson","Williams","Jackson",{"$f":"--NOT(OR(Table2[[#This Row],[Bin_1]]=Table2[[#This Row],[Bin_2]],Table2[[#This Row],[Bin_1]]=Table2[[#This Row],[Bin_3]],Table2[[#This Row],[Bin_2]]=Table2[[#This Row],[Bin_3]]))","v":1}]
[null,"Davis","",""]
[null,"Jackson","Thomas","Miller"]
[null,"Smith","",""]
[null,"Jackson","Johnson","Jones"]
[null,"Johnson","Johnson","Jackson"]
[null,"Taylor","","Williams"]
[null,"Moore","Miller",""]
[null,"Brown","Taylor","Anderson"]
[null,"Davis","Johnson","Anderson"]
[null,"Jones","Wilson","Anderson"]
[null,"Wilson","Johnson","Moore"]
[null,"Jackson","Davis","Jackson"]
[null,"Johnson","Jackson","Jackson"]
[null,"Davis","","Smith"]
[null,"Wilson","Smith","Anderson"]
[null,"Thomas","","Brown"]
[null,"Taylor","Miller","Anderson"]
[null,"Taylor","Jones","Johnson"]
[null,"Williams","Anderson","Brown"]
[null,"Williams","",""]
[null,"Taylor","Johnson","Moore"]
[null,"Miller","Wilson","Taylor"]
[null,"Davis","Williams","Johnson"]
[null,"Davis","","Anderson"]
[null,"Thomas","","Davis"]
[null,"Johnson","Williams","Anderson"]
[null,"Davis","Jones","Moore"]
[null,"Jackson","Thomas","Anderson"]
[null,"Wilson","Jackson","Moore"]
[null,"Johnson","Brown","Jones"]
[null,"Anderson","Davis",""]
[null,"Miller","Johnson","Anderson"]
[null,"Williams","Taylor","Taylor"]
[null,"","Taylor","Smith"]
[null,"Miller","Moore","Miller"]
[null,"Wilson","Jones","Miller"]
[null,"Williams","Thomas","Smith"]
[null,"Williams","Taylor","Williams"]
[null,"","Taylor","Smith"]
[null,"Wilson","Johnson","Smith"]
[null,"Miller","Johnson","Taylor"]
[null,"Jones","",""]
[null,"Jones","Anderson","Wilson"]
[null,"Moore","Anderson","Taylor"]
[null,"Brown","Thomas","Taylor"]
[null,"","","Smith"]
[null,"Jackson","Moore","Jackson"]
[null,"","","Anderson"]
[null,"Wilson","Thomas","Miller"]
[null,"Johnson","Moore","Miller"]
[null,"Davis","Thomas","Williams"]
[null,"Moore","Johnson","Taylor"]
[null,"Taylor","Moore","Miller"]
[null,"","Johnson","Thomas"]
[null,"Anderson","Miller","Taylor"]
[null,"Anderson","Taylor","Anderson"]
[null,"Davis","Brown","Johnson"]
[null,"Davis","Davis","Smith"]
[null,"Anderson","","Miller"]
[null,"Jackson","Jones","Moore"]
[null,"Jackson","Jackson","Moore"]
[null,"Davis","Miller","Davis"]
[null,"Jones","Jones","Jackson"]
[null,"Williams","Miller","Davis"]
[null,"Taylor","Jones","Jackson"]
[null,"Brown","",""]
[null,"Thomas","Jones","Johnson"]
[null,"Taylor","Anderson","Wilson"]
[null,"Davis","Davis","Smith"]
[null,"Williams","Moore","Jackson"]
[null,"Wilson","Miller","Wilson"]
[null,"Thomas","Davis",""]
[null,"Jones","Wilson","Miller"]
[null,"Williams","Anderson","Miller"]
[null,"Taylor","Moore","Taylor"]
[null,"Jones","Brown","Anderson"]
[null,"Moore","Williams",""]
[null,"Smith","Johnson","Wilson"]
[null,"Davis","Johnson","Jackson"]
[null,"Miller","Anderson",""]
[null,"Thomas","Moore","Davis"]
[null,"Williams","Johnson","Moore"]
[null,"Taylor","Jones","Smith"]
[null,"","Smith",""]
[null,"Jones","Jackson","Moore"]
[null,"","","Davis"]
[null,"Davis","Moore","Thomas"]
[null,"Smith","Thomas",""]
[null,"Miller","Davis","Johnson"]
[null,"Smith","Brown","Jones"]
[null,"Wilson","Johnson","Taylor"]
[null,"Johnson","Johnson","Miller"]
[null,"Brown","Johnson","Anderson"]
[null,"Smith","Williams","Thomas"]
[null,"Jackson","Davis","Thomas"]
[null,"Johnson","Davis",""]
[null,"Taylor","Moore","Jackson"]
[null,"Miller","Smith","Brown"]
[null,"Smith","Wilson","Jackson"]
[null,"Williams","Williams",""]
[null,"Jackson","Miller","Smith"]
[null,"Thomas","","Jackson"]
[null,"Wilson","Jones","Miller"]